Workbook

Sheet PORTADA

Sheet MENU
B5: Descripción | C5: Nombre de la hoja
B6: Definiciones artículo 3° LIEPS | C6: DEFINICION
B7: Tasas de impuestos | C7: TASAS
B8: Actividades exentas | C8: EXENTO
B9: Declaraciones informativas | C9: OBLIGACIONES
B10: Fundamentos obligaciones MULTI-IEPS | C10: FUNDO
B11: Ejemplo IEPS | C11: EJEMPLO
B12: Formato anexo 1 | C12: ANEXO 1
B13: Formato anexo 3 | C13: ANEXO3
B14: Formato anexo 4 | C14: ANEXO4
B15: Formato anexo 5 | C15: ANEXO5
B16: Formato entidad federativa ANEXO 8 | C16: ANEXO8V
B17: Formato anexo 9 | C17: ANEXO 9
B18: Claves de productos MULTI-IEPS | C18: CLAVEG
B19: Claves de país MULTI-IEPS | C19: PAISO

Sheet DEFINICIÓN
B3: Ley del Impuesto Especial sobre Producción y Servicios (LIEPS)
B4: Artículo 3° - Fracciones XXII a XXXIX (Combustibles Fósiles, Alimentos Calóricos, Establecimientos y Videojuegos)
B6: Fracción | C6: Concepto Principal | D6: Subclasificación | E6: Descripción / Especificaciones Legales
B7: I | C7: Bebidas con contenido alcohólico, las bebidas alcohólicas y las bebidas refrescantes | D7: a) Bebidas alcohólicas | E7: Las que a la temperatura de 15° centígrados tengan una graduación alcohólica de más de 3°G.L., hasta 55°G.L., incluyendo el aguardiente y a los concentrados de bebidas alcohólicas aun cuando tengan una graduación alcohólica mayor.
B8: I | C8: Bebidas con contenido alcohólico, las bebidas alcohólicas y las bebidas refrescantes | D8: b) Bebidas refrescantes | E8: Las elaboradas con un mínimo de 50% a base de vino de mesa, producto de la fermentación natural de frutas, pudiéndose adicionar agua, bióxido de carbono o agua carbonatada, jugo de frutas, extracto de frutas, aceites esenciales, ácido cítrico, azúcar, ácido benzoico o ácido sórbico o sus sales como conservadores, así como aquéllas que se elaboran de destilados alcohólicos diversos de los antes señalados.
B9: II | C9: Cerveza | D9: N/A | E9: La bebida fermentada, elaborada con malta de cebada, lúpulo, levadura y agua o con infusiones de cualquier semilla farinácea procedente de gramíneas o leguminosas, raíces o frutos feculentos o azúcares como adjuntos de la malta, con adición de lúpulo o sucedáneos de éste.
B10: III | C10: Bebidas alcohólicas a granel | D10: N/A | E10: Las que se encuentren envasadas en recipientes cuya capacidad exceda a 5,000 mililitros.
B11: IV | C11: Marbete | D11: N/A | E11: El signo distintivo de control fiscal y sanitario que puede ser físico y se adhiere a los envases que contengan bebidas alcohólicas, o bien, electrónico que se imprime del folio autorizado y entregado por el Servicio de Administración Tributaria en las etiquetas o contraetiquetas de los referidos envases, en ambos casos con capacidad que no exceda de 5,000 mililitros. (Fracción reformada DOF 01-12-2004, 23-12-2005, 12-11-2021)
B12: V | C12: Precinto | D12: N/A | E12: El signo distintivo de control fiscal y sanitario, que se adhiere a los recipientes que contengan bebidas alcohólicas con capacidad que exceda a 5,000 mililitros.
B13: VI | C13: Alcohol | D13: N/A | E13: La solución acuosa de etanol con las impurezas que la acompañan, con graduación mayor de 55°G.L., a una temperatura de 15°C. No queda comprendido el etanol para uso automotriz. (Fracción reformada DOF 18-11-2015)
B14: VII | C14: Alcohol desnaturalizado | D14: N/A | E14: La solución acuosa de etanol con las impurezas que la acompañan, con una graduación mayor de 55°G.L., a una temperatura de 15°C, con la adición de las sustancias desnaturalizantes autorizadas por la Secretaría de Salud. No queda comprendido el etanol para uso automotriz. (Fracción reformada DOF 18-11-2015)
B15: VIII | C15: Tabacos labrados y otros | D15: a) Cigarros | E15: Los cigarros con o sin filtro, elaborados con mezcla de tabacos rubios o de tabacos obscuros, envueltos con papel o cualquier otra sustancia que no contenga tabaco. (Párrafo reformado DOF 07-11-2025)
B16: VIII | C16: Tabacos labrados y otros | D16: b) Puros | E16: Los tabacos labrados confeccionados y enrollados al 100% con hojas de tabaco o cualquier otra sustancia que contenga tabaco.
B17: VIII | C17: Tabacos labrados y otros | D17: c) Otros tabacos labrados | E17: Los que no están comprendidos en los incisos anteriores. Se consideran tabacos labrados, entre otros, a los tabacos cernidos, picados, de hebra, de mascar, así como al rapé.
B18: VIII | C18: Tabacos labrados y otros | D18: d) Otros productos que contengan nicotina | E18: Los que contengan nicotina ya sea natural o artificial, cualquiera que sea su presentación, independientemente de que pudieran contener otras sustancias en su elaboración, que no contengan tabaco cortado, molido, en polvo o en hoja y no estén diseñados para calentarse o quemarse.
B19: IX | C19: Combustibles automotrices y sus definiciones | D19: a) Combustibles automotrices | E19: Gasolinas, diésel, combustibles no fósiles o la mezcla de cualquiera de los combustibles mencionados. (Fracción reformada DOF 11-12-2013, 18-11-2015, 09-12-2019)
B20: IX | C20: Combustibles automotrices y sus definiciones | D20: b) Gasolina | E20: Combustible líquido que se puede obtener del proceso de refinación del petróleo crudo o mediante procesos alternativos que pueden utilizar como insumo materias primas que tuvieron su origen en el petróleo formado por la mezcla de hidrocarburos líquidos volátiles, principalmente parafinas ramificadas, aromáticos, naftenos y olefinas, pudiendo contener otros compuestos provenientes de otras fuentes, que se clasifica en función del número de octano.
B21: IX | C21: Combustibles automotrices y sus definiciones | D21: c) Diésel | E21: Combustible líquido que puede obtenerse del proceso de refinación del petróleo crudo o mediante procesos alternativos que pueden utilizar como insumo materias primas que tuvieron su origen en el petróleo, formado por la mezcla compleja de hidrocarburos, principalmente parafinas no ramificadas, pudiendo contener otros compuestos provenientes de otras fuentes, con independencia del uso al que se destine.
B22: IX | C22: Combustibles automotrices y sus definiciones | D22: d) Combustibles no fósiles | E22: Combustibles o componentes de combustibles que no se obtienen o derivan de un proceso de destilación de petróleo crudo o del procesamiento de gas natural.
B23: X | C23: Etanol para uso automotriz | D23: N/A | E23: Alcohol tipo etanol anhidro con contenido de agua menor o igual a 1 por ciento y que cumpla con las especificaciones de calidad y características como biocombustible puro, que emita la autoridad competente. (Fracción reformada DOF 11-12-2013, 18-11-2015, 09-12-2019)
B24: XI | C24: (Se deroga) | D24: N/A | E24: (Fracción derogada DOF 30-12-2002. Adicionada DOF 23-12-2005. Derogada DOF 09-12-2019)
B25: XII | C25: Contraprestación | D25: N/A | E25: El precio pactado, adicionado con las cantidades que además se carguen o cobren al adquirente del bien o al prestatario del servicio por intereses normales o moratorios, penas convencionales o cualquier otro concepto distinto de impuestos. A falta de precio pactado o cuando éste se determine en cantidad 'cero' se estará al valor que los bienes o servicios tengan en el mercado, o en su defecto al de avalúo. También forman parte de la contraprestación los anticipos o depósitos que reciba el enajenante o el prestador del servicio antes de entregar el bien o prestar el servicio, cualquiera que sea el nombre que se dé a dichos anticipos o depósitos. Cuando con motivo de la enajenación de bienes sujetos al pago de este impuesto se convenga además del precio por dicha enajenación el pago de cantidades adicionales al mismo por concepto de publicidad o cualquier otro, que en su defecto se hubieran tenido que realizar por parte del enajenante, dichas erogaciones formarán parte del valor o precio pactado. (Párrafo reformado DOF 31-12-2003, 18-11-2015) Tratándose de enajenaciones se considerará que forma parte de la contraprestación, además de lo señalado en los párrafos anteriores, las cantidades que se carguen o cobren al adquirente del bien por concepto de envases y empaques, no retornables, necesarios para contener los bienes que se enajenan. Cuando la contraprestación que reciba el contribuyente por la enajenación de bienes o la prestación de servicios no sea en dinero, sino total o parcialmente en otros bienes o servicios, se considerará como valor de éstos el de mercado o, en su defecto, el de avalúo. Los mismos valores se tomarán en cuenta en caso de donación, cuando por ella se deba pagar el impuesto establecido en esta Ley. En las permutas y pagos en especie, el impuesto especial sobre producción y servicios se deberá pagar por cada bien cuya propiedad se transmita o por cada servicio que se preste.
B26: XIII | C26: Mieles incristalizables | D26: N/A | E26: El producto residual de la fabricación de azúcar, cuando referido a 85° brix a 20° centígrados, los azúcares fermentables expresados en glucosa no excedan del 61%.
B27: XIV | C27: Red pública de telecomunicaciones | D27: N/A | E27: La red de telecomunicaciones a través de la cual se explotan comercialmente servicios de telecomunicaciones. La red no comprende los equipos terminales de telecomunicaciones de los usuarios ni las redes de telecomunicaciones que se encuentren más allá del punto de conexión terminal. (Fracción reformada DOF 30-12-2002. Derogada DOF 31-12-2003. Adicionada DOF 27-11-2009)
B28: XV | C28: Red de telecomunicaciones | D28: N/A | E28: El sistema integrado por medios de transmisión, tales como canales o circuitos que utilicen bandas de frecuencias del espectro radioeléctrico, enlaces satelitales, cableados, redes de transmisión eléctrica o cualquier otro medio de transmisión, así como, en su caso, centrales, dispositivos de conmutación o cualquier equipo necesario. (Fracción reformada DOF 30-12-2002, 31-12-2003. Derogada DOF 27-12-2006. Adicionada DOF 27-11-2009)
B29: XVI | C29: Equipo terminal de telecomunicaciones | D29: N/A | E29: Comprende todo el equipo de telecomunicaciones de los usuarios que se conecte más allá del punto de conexión terminal de una red pública con el propósito de tener acceso a uno o más servicios de telecomunicaciones. (Fracción reformada DOF 30-12-2002. Derogada DOF 27-12-2006. Adicionada DOF 27-11-2009)
B30: XVII | C30: Bebidas energetizantes | D30: N/A | E30: Las bebidas no alcohólicas adicionadas con la mezcla de cafeína y taurina o glucoronolactona o tiamina y/o cualquier otra sustancia que produzca efectos estimulantes similares. (Párrafo reformado DOF 09-12-2019) Se consideran concentrados, polvos y jarabes para preparar bebidas energetizantes, aquéllos que por dilución permiten obtener bebidas energetizantes con las características señaladas en el párrafo anterior. (Fracción adicionada DOF 19-11-2010)
B31: XVIII | C31: Bebidas saborizadas | D31: N/A | E31: Las bebidas no alcohólicas elaboradas por la disolución en agua de cualquier tipo de azúcares o edulcorantes y que pueden incluir ingredientes adicionales tales como saborizantes naturales, artificiales o sintéticos, adicionados o no, de jugo, pulpa o néctar, de frutas o de verduras o de legumbres, de sus concentrados o extractos y otros aditivos para alimentos, y que pueden estar o no carbonatadas. (Fracción adicionada DOF 11-12-2013. Reformada DOF 07-11-2025)
B32: XIX | C32: Concentrados, polvos y jarabes | D32: N/A | E32: Esencias o extractos de sabores, que permitan obtener bebidas saborizadas, a los productos con o sin edulcorantes o saboreadores, naturales, artificiales o sintéticos, adicionados o no, de jugo, pulpa o néctar, de frutas, de verduras o legumbres y otros aditivos para alimentos. (Fracción adicionada DOF 11-12-2013)
B33: XX | C33: Azúcares | D33: N/A | E33: A los monosacáridos, disacáridos y polisacáridos, siempre que en este último caso se utilicen como edulcorantes con aporte calórico. (Fracción adicionada DOF 11-12-2013)
B34: XX BIS | C34: Edulcorante | D34: N/A | E34: Sustancia natural o artificial que se adiciona a las bebidas para impartir un sabor dulce a los productos, diferentes de los azúcares a que se refiere la fracción XX de este artículo. (Fracción adicionada DOF 07-11-2025)
B35: XXI | C35: Suero oral | D35: N/A | E35: La preparación en agua que exclusivamente contenga todas y cada una de las siguientes substancias: glucosa anhidra, cloruro de potasio, cloruro de sodio y citrato trisódico.
B36: XXII | C36: Combustibles fósiles | D36: a) Gas Natural | E36: Hidrocarburo que se presenta como una mezcla de gases, constituida principalmente por metano, pero que comúnmente puede contener otros alcanos y otros gases como nitrógeno, ácido sulfhídrico, helio y mercaptanos. (Fracción adicionada DOF 11-12-2013)
B37: XXII | C37: Combustibles fósiles | D37: b) Propano | E37: Gas incoloro e inodoro, perteneciente a los hidrocarburos alifáticos con enlaces simples de tres carbonos.
B38: XXII | C38: Combustibles fósiles | D38: c) Butano | E38: También conocido como n-butano, hidrocarburo saturado, parafínico o alifático, inflamable que se presenta comúnmente en estado gaseoso, incoloro e inodoro, compuesto por cuatro átomos de carbono y por diez de hidrógeno.
B39: XXII | C39: Combustibles fósiles | D39: d) Gasolina | E39: El producto definido conforme a lo dispuesto en la fracción IX, inciso b) de este artículo. (Inciso reformado DOF 18-11-2015, 09-12-2019)
B40: XXII | C40: Combustibles fósiles | D40: e) Gasavión | E40: Alquilado o gasolina de alto octanaje, de alta volatilidad y estabilidad y de un bajo punto de congelación, con contenido de tetraetilo de plomo utilizado en aeronaves equipadas con motores de combustión interna.
B41: XXII | C41: Combustibles fósiles | D41: f) Turbosina y kerosenos | E41: Combustibles líquidos e incoloros insolubles en agua, que se obtienen del proceso de refinación del petróleo crudo al fraccionarse típicamente a temperaturas entre los 157° y los 233° Celsius, utilizados principalmente como combustibles para aviones de retropropulsión, en los motores a reacción y de turbina de gas.
B42: XXII | C42: Combustibles fósiles | D42: g) Diésel | E42: El producto definido conforme a lo dispuesto en la fracción IX, inciso c) de este artículo. (Inciso reformado DOF 18-11-2015, 09-12-2019)
B43: XXII | C43: Combustibles fósiles | D43: h) Combustóleo | E43: También llamado fuel oil, combustible más pesado de los que se puede destilar a presión atmosférica, es una fracción del petróleo que se obtiene como residuo de la destilación fraccionada a temperaturas típicamente por encima de los 426° Celsius, está compuesto por moléculas con más de 20 átomos de carbono, y su color es negro, se usa como combustible para plantas de energía eléctrica, calderas y hornos.
B44: XXII | C44: Combustibles fósiles | D44: i) Coque de Petróleo | E44: Combustible sólido carbonoso formado por la coquización del petróleo crudo procesado en refinerías o en procesos de craqueo.
B45: XXII | C45: Combustibles fósiles | D45: j) Coque de Carbón | E45: Combustible sólido carbonoso formado por la destilación de carbón bituminoso calentado a temperaturas de 500° a 1,100° Celsius sin contacto con el aire.
B46: XXII | C46: Combustibles fósiles | D46: k) Carbón Mineral | E46: Roca sedimentaria utilizada como combustible sólido, compuesto principalmente por carbono y otros elementos en cantidades variables como hidrógeno, azufre, oxígeno y nitrógeno.
B47: XXII | C47: Combustibles fósiles | D47: l) Otros combustibles fósiles | E47: Cualquier otro derivado del petróleo, carbón mineral o gas natural que se destinen a un proceso de combustión y que no estén listados en los incisos anteriores.
B48: XXIII | C48: Plaguicida | D48: N/A | E48: Cualquier substancia o mezcla de substancias que se destina a controlar cualquier plaga, incluidos los vectores que transmiten las enfermedades humanas y de animales, las especies no deseadas que causen perjuicio o que interfieran con la producción agropecuaria y forestal, así como las substancias defoliantes y las desecantes. (Fracción adicionada DOF 11-12-2013)
B49: XXIV | C49: Bonos de carbono | D49: N/A | E49: Son un instrumento económico contemplado en el Protocolo de Kioto y avalados por la Organización de las Naciones Unidas dentro de la Convención Marco de las Naciones Unidas sobre el Cambio Climático y cada bono de carbono equivale a una tonelada de bióxido de carbono equivalente (ton CO2 eq.), que ha sido dejada de emitir a la atmósfera. (Fracción adicionada DOF 11-12-2013)
B50: XXV | C50: Densidad calórica | D50: N/A | E50: A la cantidad de energía, expresada en kilocalorías por cada 100 gramos de alimento, que se obtiene al multiplicar las kilocalorías que contiene el alimento por cien y el resultado dividirlo entre los gramos de la porción de que se trate. (Fracción adicionada DOF 11-12-2013)
B51: XXVI | C51: Botanas | D51: N/A | E51: Los productos elaborados a base de harinas, semillas, tubérculos, cereales, granos y frutas sanos y limpios que pueden estar fritos, horneados y explotados o tostados y adicionados de sal, otros ingredientes y aditivos para alimentos, así como las semillas para botanas, que son la parte del fruto comestible de las plantas o árboles, limpia, sana, con o sin cáscara o cutícula, frita, tostada u horneada, adicionada o no de otros ingredientes o aditivos para alimentos. (Fracción adicionada DOF 11-12-2013)
B52: XXVII | C52: Productos de confitería | D52: N/A | E52: Los dulces y confites. Quedan comprendidos los caramelos, el dulce imitación de mazapán, gelatina o grenetina, gelatina preparada o jaletina, malvavisco, mazapán, peladilla, turrón, entre otros. (Fracción adicionada DOF 11-12-2013)
B53: XXVIII | C53: Chocolate | D53: N/A | E53: Al producto obtenido por la mezcla homogénea de cantidades variables de pasta de cacao, o manteca de cacao, o cocoa con azúcares u otros edulcorantes, ingredientes opcionales y aditivos para alimentos, cualquiera que sea su presentación. (Fracción adicionada DOF 11-12-2013)
B54: XXIX | C54: Derivados del cacao | D54: N/A | E54: La manteca de cacao, pasta o licor de cacao, torta de cacao, entre otros. (Fracción adicionada DOF 11-12-2013)
B55: XXX | C55: Flan | D55: N/A | E55: Dulce que se hace con yemas de huevo, leche y azúcar, y se cuaja a baño María, dentro de un molde generalmente bañado de azúcar tostada. Suele llevar también harina, y con frecuencia se le añade algún otro ingrediente, como café, naranja, vainilla, entre otros. (Fracción adicionada DOF 11-12-2013)
B56: XXXI | C56: Pudín | D56: N/A | E56: Dulce que se prepara con bizcocho o pan deshecho en leche y con azúcar y frutas secas. (Fracción adicionada DOF 11-12-2013)
B57: XXXII | C57: Dulces de frutas y de hortalizas | D57: N/A | E57: A los productos tales como ates, jaleas o mermeladas, obtenidos por la cocción de pulpas o jugos de frutas u hortalizas con edulcorantes, adicionados o no de aditivos para alimentos. Comprende las frutas y hortalizas cristalizadas o congeladas. (Fracción adicionada DOF 11-12-2013)
B58: XXXIII | C58: Crema de cacahuate o avellanas | D58: N/A | E58: La pasta elaborada de cacahuates o avellanas, tostados y molidos, generalmente salada o endulzada. (Fracción adicionada DOF 11-12-2013)
B59: XXXIV | C59: Dulces de leche | D59: N/A | E59: Comprende, entre otros, la cajeta, el jamoncillo y natillas. (Fracción adicionada DOF 11-12-2013)
B60: XXXV | C60: Alimentos preparados a base de cereales | D60: N/A | E60: Comprende todo tipo de alimento preparado a base de cereales, ya sea en hojuelas, aglomerados o anillos de cereal, pudiendo o no estar añadidos con frutas o saborizantes. (Fracción adicionada DOF 11-12-2013)
B61: XXXVI | C61: Helados | D61: N/A | E61: Al alimento elaborado mediante la congelación, con agitación de una mezcla pasteurizada compuesta por una combinación de ingredientes lácteos, que puede contener grasas vegetales permitidas, frutas, huevo, sus derivados y aditivos para alimentos. (Fracción adicionada DOF 11-12-2013)
B62: XXXVII | C62: Establecimientos de consumo final | D62: N/A | E62: A las cantinas, bares, cervecerías, centros nocturnos, cabarets, restaurantes, hoteles, centros sociales, discotecas, loncherías, fondas, kermeses, ferias, espectáculos, bailes públicos, salones, banquetes, casinos, y todos aquellos en los que se realice la apertura de bebidas alcohólicas para su venta y consumo final. (Fracción adicionada DOF 12-11-2021)
B63: XXXVIII | C63: Videojuego con contenido violento, extremo o para adulto | D63: N/A | E63: No apto para personas menores de 18 años, aquellos que se clasifiquen como tales por contener violencia intensa o escenas prolongadas de violencia intensa, derramamiento de sangre, contenido sexual o contenido sexual gráfico, lenguaje fuerte o apuestas con moneda real. (Fracción adicionada DOF 07-11-2025)
B64: XXXIX | C64: Contenido adicional dentro del videojuego | D64: N/A | E64: Todo contenido digital que complementa el videojuego por el que se paga una contraprestación, que pudiendo ser descargable o no, se utilice como elemento interactivo dentro del videojuego, como serían productos digitales o promocionales, que permitan mejorar la experiencia del adquirente, entre otros: nuevos escenarios, niveles, personajes, armas o modos de juegos.

Sheet TASAS
B3: Ley del Impuesto Especial sobre Producción y Servicios (LIEPS)
B4: Artículo 2° - Fracción I, Incisos A), B) y C) (Bebidas Alcohólicas, Cerveza, Alcohol y Tabacos)
B6: Fracción | C6: Inciso / Concepto | D6: Numeral / Subconcepto | E6: Tasa / Cuota | F6: Especificaciones y Reglas Aplicables
B7: I | C7: A) Bebidas con contenido alcohólico y cerveza | D7: 1. Con una graduación alcohólica de hasta 14° G.L. | E7: 26.5% | F7: Tasa ad valorem.
B8: I | C8: A) Bebidas con contenido alcohólico y cerveza | D8: 2. Con una graduación alcohólica de más de 14° y hasta 20°G.L. | E8: 30% | F8: Tasa ad valorem.
B9: I | C9: A) Bebidas con contenido alcohólico y cerveza | D9: 3. Con una graduación alcohólica de más de 20°G.L. | E9: 53% | F9: Tasa ad valorem.
B10: I | C10: B) Alcohol, alcohol desnaturalizado y mieles incristalizables | D10: N/A | E10: 50% | F10: Tasa ad valorem.
B11: I | C11: C) Tabacos labrados y otros | D11: 1. Cigarros | E11: 200% | F11: Tasa ad valorem.
B12: I | C12: C) Tabacos labrados y otros | D12: 2. Puros y otros tabacos labrados | E12: 200% | F12: Tasa ad valorem.
B13: I | C13: C) Tabacos labrados y otros | D13: 3. Puros y otros tabacos labrados hechos enteramente a mano | E13: 32% | F13: Tasa ad valorem.
B14: I | C14: C) Tabacos labrados y otros | D14: 4. Otros productos que contengan nicotina | E14: 100% | F14: Tasa ad valorem.
B15: I | C15: C) Tabacos labrados y otros (Cuota Adicional Específica) | D15: Cuota específica aplicable a Cigarros | E15: $1.1584 por cigarro | F15: Adicionalmente a las tasas establecidas, se pagará esta cuota por cigarro enajenado o importado. Especificaciones legales: - Peso equivalente: 1 cigarro = 0.75 gramos de tabaco (incluyendo otras sustancias mezcladas). - Contenido de nicotina: 1 cigarro = 8 miligramos de nicotina.
B16: I | C16: C) Tabacos labrados y otros (Cuota Adicional Específica) | D16: Mecanismo para otros tabacos y productos con nicotina | E16: Cuota proporcional según fórmula legal | F16: Reglas de aplicación de la cuota para otros productos: 1. Otros tabacos labrados (excepto puros hechos a mano): Se aplica la cuota de $1.1584 al resultado de dividir el peso total en gramos entre 0.75 (incluyendo sustancias mezcladas, excluyendo filtro y papel/envoltura sin tabaco). 2. Otros productos con nicotina: Se aplica la cuota de $1.1584 al resultado de dividir el contenido total de nicotina (en mg) entre 8, sin considerar sustancias sin nicotina.
B17: I | C17: C) Tabacos labrados y otros (Cuota Adicional Específica) | D17: Regla de Actualización Anual de la Cuota | E17: Factor de actualización anual (CFF Art. 17-A) | F17: La cuota se actualizará anualmente a partir del 1 de enero con el factor de actualización correspondiente al periodo desde diciembre del penúltimo año hasta diciembre del inmediato anterior. SHCP publicará en el DOF en diciembre el factor y la cuota actualizada expresada hasta el diezmilésimo.
B18: I | C18: D) Combustibles automotrices | D18: 1. Combustibles fósiles: a) Gasolina menor a 91 octanos | E18: $6.7001 | F18: Pesos por litro
B19: I | C19: D) Combustibles automotrices | D19: 1. Combustibles fósiles: b) Gasolina mayor o igual a 91 octanos | E19: $5.6579 | F19: Pesos por litro
B20: I | C20: D) Combustibles automotrices | D20: 1. Combustibles fósiles: c) Diésel | E20: $7.3634 | F20: Pesos por litro
B21: I | C21: D) Combustibles automotrices | D21: 2. Combustibles no fósiles | E21: $5.6579 | F21: Pesos por litro
B22: I | C22: D) Combustibles automotrices (Reglas) | D22: Aplica a todas las categorías del Inciso D) | E22: N/A | F22: N/A
B23: I | C23: E) (Se deroga) | D23: N/A | E23: Derogado | F23: N/A
B24: I | C24: F) Bebidas energetizantes | D24: Bebidas energetizantes, concentrados, polvos y jarabes para su preparación | E24: 25% | F24: Tasa ad valorem
B25: I | C25: G) Bebidas saborizadas | D25: Bebidas saborizadas (con azúcares añadidos) | E25: $3.0818 | F25: Pesos por litro
B26: I | C26: G) Bebidas saborizadas | D26: Bebidas saborizadas (con edulcorantes añadidos) | E26: $1.5000 | F26: Pesos por litro
B27: I | C27: G) Bebidas saborizadas (Reglas) | D27: Regla de actualización anual | E27: N/A | F27: N/A
B28: I | C28: H) Combustibles Fósiles | D28: 1. Propano | E28: 10.1248 | F28: Centavos por litro
B29: I | C29: H) Combustibles Fósiles | D29: 2. Butano | E29: 13.1025 | F29: Centavos por litro
B30: I | C30: H) Combustibles Fósiles | D30: 3. Gasolinas y gasavión | E30: 17.7591 | F30: Centavos por litro
B31: I | C31: H) Combustibles Fósiles | D31: 4. Turbosina y otros kerosenos | E31: 21.2108 | F31: Centavos por litro
B32: I | C32: H) Combustibles Fósiles | D32: 5. Diésel | E32: 21.5491 | F32: Centavos por litro
B33: I | C33: H) Combustibles Fósiles | D33: 6. Combustóleo | E33: 22.9975 | F33: Centavos por litro
B34: I | C34: H) Combustibles Fósiles | D34: 7. Coque de petróleo | E34: 26.6930 | F34: Pesos por tonelada
B35: I | C35: H) Combustibles Fósiles | D35: 8. Coque de carbón | E35: 62.5771 | F35: Pesos por tonelada
B36: I | C36: H) Combustibles Fósiles | D36: 9. Carbón mineral | E36: 47.1189 | F36: Pesos por tonelada
B37: I | C37: H) Combustibles Fósiles | D37: 10. Otros combustibles fósiles | E37: 68.1134 | F37: Pesos por tonelada de carbono
B38: I | C38: H) Combustibles Fósiles (Reglas) | D38: Aplica a todas las categorías del Inciso H) | E38: N/A | F38: N/A
B39: I | C39: I) Plaguicidas | D39: Categorías 1 y 2 | E39: 9% | F39: Tasa ad valorem conforme a la categoría de peligro de toxicidad aguda. Sujeta a la NOM-232-SSA1-2009 (DOF 13-04-2010).
B40: I | C40: I) Plaguicidas | D40: Categoría 3 | E40: 7% | F40: Tasa ad valorem conforme a la categoría de peligro de toxicidad aguda. Sujeta a la NOM-232-SSA1-2009.
B41: I | C41: I) Plaguicidas | D41: Categoría 4 | E41: 6% | F41: Tasa ad valorem conforme a la categoría de peligro de toxicidad aguda. Sujeta a la NOM-232-SSA1-2009.
B42: I | C42: I) Plaguicidas | D42: Categoría 5 / Sin Clasificación | E42: 0% | F42: No gravado según el tabulador por categorías de peligro de toxicidad aguda.
B43: I | C43: J) Alimentos no básicos con alta densidad calórica | D43: 1. Botanas | E43: 8% | F43: Aplica si la densidad calórica es de 275 kcal o mayor por cada 100 gramos. Reglas de Etiquetado: - Se pueden tomar en cuenta las kcal manifestadas en la etiqueta oficial. - Sin etiqueta: Se presume (salvo prueba en contrario) densidad calórica >= 275 kcal/100g. - Exenciones: El SAT emitirá reglas generales para excluir alimentos de consumo básico por su importancia nutricional. (Inciso adicionado DOF 11-12-2013)
B44: I | C44: J) Alimentos no básicos con alta densidad calórica | D44: 2. Productos de confitería | E44: 8% | F44: Aplica a densidad calórica >= 275 kcal / 100 g.
B45: I | C45: J) Alimentos no básicos con alta densidad calórica | D45: 3. Chocolate y derivados del cacao | E45: 8% | F45: Aplica a densidad calórica >= 275 kcal / 100 g.
B46: I | C46: J) Alimentos no básicos con alta densidad calórica | D46: 4. Flanes y pudines | E46: 8% | F46: Aplica a densidad calórica >= 275 kcal / 100 g.
B47: I | C47: J) Alimentos no básicos con alta densidad calórica | D47: 5. Dulces de frutas y hortalizas | E47: 8% | F47: Aplica a densidad calórica >= 275 kcal / 100 g.
B48: I | C48: J) Alimentos no básicos con alta densidad calórica | D48: 6. Cremas de cacahuate y avellanas | E48: 8% | F48: Aplica a densidad calórica >= 275 kcal / 100 g.
B49: I | C49: J) Alimentos no básicos con alta densidad calórica | D49: 7. Dulces de leche | E49: 8% | F49: Aplica a densidad calórica >= 275 kcal / 100 g.
B50: I | C50: J) Alimentos no básicos con alta densidad calórica | D50: 8. Alimentos preparados a base de cereales | E50: 8% | F50: Aplica a densidad calórica >= 275 kcal / 100 g.
B51: I | C51: J) Alimentos no básicos con alta densidad calórica | D51: 9. Helados, nieves y paletas de hielo | E51: 8% | F51: Aplica a densidad calórica >= 275 kcal / 100 g.
B52: I | C52: K) Videojuegos con contenido violento, extremo o para adulto | D52: Clasificación no apto para menores de 18 años (formato físico) | E52: 8% | F52: Aplica a ventas efectuadas al público en general en formato físico. Excepción: No será aplicable tratándose de la importación de dichos videojuegos.

Sheet EXENTO
B3: Exentos | D3: Fundamento
B4: Producto | C4: Condición | D4: Producto | E4: Exención
B5: Aguamiel y productos derivados de su fermentación | D5: Artículo 2 fracción I inciso A) | E5: Artículo 8 fracción I, inciso b)
B6: Tabacos labrados y otros | C6: Las que realicen personas diferentes de los fabricantes, productores o importadores | D6: Artículo 2 fracción I inciso C) | E6: Artículo 8 fracción I, inciso c) En estos casos, las personas distintas de los fabricantes, productores o importadores, no se consideran contribuyentes de este impuesto por dichas enajenaciones.
B7: Combustibles automotrices | D7: Artículo 2 fracción I inciso D)
B8: Bebidas saborizadas; concentrados, polvos, jarabes, esencias o extractos de sabores, que al diluirse permitan obtener bebidas saborizadas; y jarabes o concentrados para preparar bebidas saborizadas que se expendan en envases abiertos utilizando aparatos automáticos, eléctricos o mecánicos, siempre que los bienes a que se refiere este inciso contengan cualquier tipo de azúcares o edulcorantes añadidos. | D8: Artículo 2 fracción I inciso G)
B9: Combustibles Fósiles | D9: Artículo 2 fracción I inciso H)
B10: Cuota adicional combustibles automotices y fosiles | D10: Artículo 2-A
B11: Cerveza | C11: Que se efectúen al público en general, salvo que el enajenante sea fabricante, productor, envasador, distribuidor o importador de los bienes que enajene. No gozarán del beneficio establecido en este inciso, las enajenaciones de los citados bienes efectuadas por comerciantes que obtengan la mayor parte del importe de sus ingresos de enajenaciones a personas que no forman parte del público en general. No se consideran enajenacionesefectuadas con el público en general cuando por las mismas se expidan comprobantes que cumplan con los requisitos a que se refiere el artículo 29-A del Código Fiscal de la Federación. | D11: Artículo 2 fracción I inciso A) | E11: Artículo 8 fracción I inciso d)
B12: Bebidas refrescantes | D12: Artículo 2 fracción I inciso A)
B13: Puros y otros tabacos labrados | D13: Artículo 2 fracción I inciso C), ver artículo 3o. Fracción VIII
B14: Bebidas energetizantes, así como concentrados, polvos y jarabes para preparar bebidas energetizantes | D14: Artículo 2 fracción I inciso F)
B15: Alcohol, alcohol desnaturalizado y mieles incristalizables | C15: Presentar las declaraciones informativas del artículo 19 | D15: Artículo 2 fracción I inciso B) | E15: Artículo 8 fracción I inciso e)
B16: Las de bebidas saborizadas en restaurantes, bares y otros lugares en donde se proporcionen servicios de alimentos y bebidas, bebidas saborizadas que cuenten con registro sanitario como medicamentos emitido por la autoridad sanitaria, la leche en cualquier presentación, incluyendo la que esté mezclada con grasa vegetal y los sueros orales. | D16: Artículo 2 fracción I inciso G) | E16: Artículo 8 fracción I inciso f)
B17: Plaguicidas | C17: Que conforme a la categoría de peligro de toxicidad aguda correspondan a la categoría 5. | D17: Artículo 2 fracción I inciso I) | E17: Artículo 8 fracción I inciso h)
B18: Petróleo crudo y gas natural | E18: Artículo 8 fracción I inciso i)

Sheet OBLIGACIONES
B3: Producto | C3: Inciso del artículo 2 fracción I LIEPS
B4: Bebidas con contenido alcohólico y cerveza | C4: A
B5: Obligaciones | C5: Fundamento | D5: Formato MULTI-IEPS | E5: Recomendación | F5: Infracción | G5: Multa
B6: Declaración trimestral de los contribuyentes que se les traslado el IEPS expresamente y por separado, en caso de vinos de mesa semestral. | C6: Artículo 19 fracción II LIEPS, regla 5.2.1 RMF 2026 | D6: Anexo 1 | E6: Anexo 1 | F6: No proporcionar la información a que se refiere el artículo 19, fracciones II, tercer párrafo, XIII y XV de la Ley del Impuesto Especial sobre Producción y Servicios. Fundamento: Artículo 81 fracción XVIII CFF. | G6: De $14,380.00 a $23,940.00 Fundamento: Artículo 82 fracción XVIII CFF.
B7: Declaración trimestral de los 50 principales clientes y proveedores, en caso de vinos de mesa en forma semestral | C7: Artículo 19 fracción VIII LIEPS | D7: Anexo 1 | E7: Anexo 1 | F7: No presentar la información a que se refieren el 19, fracciones VIII, IX y XII, de la Ley del Impuesto Especial sobre Producción y Servicios, dentro del plazo previsto en dichos preceptos, o no presentarla conforme lo establecen los mismos. Fundamento: Artículo 81 fracción VIII CFF. | G7: De $96,230.00 a $288,660.00 Fundamento: Artículo 82 fracción VIII CFF.
B8: Proporcionar a las autoridades fiscales durante el mes de marzo de cada año, la información que corresponda de los bienes que produjeron, enajenaron o importaron en el año inmediato anterior, respecto de su consumo por entidad federativa e impuesto correspondiente, así como de los servicios prestados por establecimiento en cada entidad federativa. | C8: Artículo 19 fracción VI LIEPS, regla 5.2.1 RMF 2026 | D8: Anexo 8 | E8: Anexo 8 | F8: Artículo 91 CFF. La infracción en cualquier forma a las disposiciones fiscales, diversa a las previstas en este Capítulo, se sancionará con multa $490.00 a $4,640.00
B9: Los fabricantes, productores o envasadores, deberán llevar un control físico del volumen fabricado, producido o envasado, según corresponda, así como reportar trimestralmente, en los meses de abril, julio, octubre y enero, del año que corresponda, la lectura mensual de los registros de cada uno de los dispositivos que se utilicen para llevar el citado control, en el trimestre inmediato anterior al de su declaración. No aplica a los productores de vinos de mesa | C9: Artículo 19 fracción X LIEPS, regla 5.2.1 RMF 2026 | D9: Anexo 9 | F9: No proporcionar la información a que se refiere el artículo 19, fracciones X y XVI de la Ley del Impuesto Especial sobre Producción y Servicios. Fundamento: Artículo 81 fracción XIX CFF. | G9: De $23,940.00 a $47,930.00 Fundamento: Artículo 82 fracción XIX CFF.
B10: Los fabricantes, productores y envasadores, de alcohol, alcohol desnaturalizado, mieles incristalizables y de bebidas alcohólicas, deberán reportar en el mes de enero de cada año, al Servicio de Administración Tributaria, las características de los equipos que utilizarán para la producción, destilación, envasamiento y almacenaje de dichos bienes, así como de los contenedores para el almacenaje de dichos bienes cuando no se trate de equipo. Asimismo, deberán reportar a dicha dependencia la fecha de inicio del proceso de producción, destilación o envasamiento, con quince días de anticipación al mismo, acompañando la información sobre las existencias de producto en ese momento. Igualmente, deberán reportar la fecha en que finalice el proceso, dentro de los quince días siguientes a la conclusión del mismo, acompañando la información sobre el volumen fabricado, producido o envasado. En el caso de que se adquieran o se incorporen nuevos equipos de destilación o envasamiento, se modifiquen los instalados o se enajenen los reportados por el contribuyente, se deberá presentar aviso ante las autoridades fiscales dentro de los 15 días siguientes a que esto ocurra. | C10: Artículo 19 fracción XII LIEPS, regla 5.2.1 RMF 2026 | D10: Anexo 3 Equipos | F10: No presentar la información a que se refieren el 19, fracciones VIII, IX y XII, de la Ley del Impuesto Especial sobre Producción y Servicios, dentro del plazo previsto en dichos preceptos, o no presentarla conforme lo establecen los mismos. Fundamento: Artículo 81 fracción VIII CFF. | G10: De $96,230.00 a $288,660.00 Fundamento: Artículo 82 fracción VIII CFF.
D11: Anexto 4 Proceso de producción, destilación o envasamiento
B12: Declaración trimestral del precio de enajenación de cada producto, valor y volumen de los mismos, en caso de vinos de mesa es semestral | C12: Artículo 19 fracción XIII LIEPS, regla 5.2.1 RMF 2026 | D12: Anexo 1 | E12: Anexo 1 | F12: No proporcionar la información a que se refiere el artículo 19, fracciones II, tercer párrafo, XIII y XV de la Ley del Impuesto Especial sobre Producción y Servicios. Fundamento: Artículo 81 fracción XVIII CFF. | G12: De $12,700.00 a $21,150.00 Fundamento: Artículo 82 fracción XVIII CFF.
B13: Reporte trimestral de los marbes y precintos obtenidos, utilizados, destruidos, e inutilizados durante el trimestre inmediato anterior. | C13: Artículo 19 fracción XV LIEPS, regla 5.2.1 RMF 2026 | D13: Página del SAT marbes y precintos
B14: Los productores o envasadores de los bienes a que se refiere el numeral 3 (bebidas alcoholicas con graduación alcohólica mayor a 20° G.L.) del inciso A) de la fracción I del artículo 2o. de esta Ley, estarán obligados a llevar un control volumétrico de producción y presentar a la Secretaría de Hacienda y Crédito Público, trimestralmente, en los meses de abril, julio, octubre y enero, del año que corresponda, un informe que contenga el número de litros producidos de conformidad con el citado control, del trimestre inmediato anterior a la fecha en que se informa. | C14: Artículo 19 fracción XVI LIEPS, regla 5.2.1 RMF 2026 | D14: Anexo 9 | F14: No proporcionar la información a que se refiere el artículo 19, fracciones X y XVI de la Ley del Impuesto Especial sobre Producción y Servicios. Fundamento: Artículo 81 fracción XIX CFF. | G14: De $23,940.00 a $47,930.00 Fundamento: Artículo 82 fracción XIX CFF.
B17: Producto | C17: Inciso del artículo 2 fracción I LIEPS
B18: Alcohol, alcohol desnaturalizado y mieles incristalizables | C18: B
B19: Obligaciones | C19: Fundamento | D19: Formato MULTI-IEPS | E19: Recomendación
B20: Proporcionar a las autoridades fiscales durante el mes de marzo de cada año, la información que corresponda de los bienes que produjeron, enajenaron o importaron en el año inmediato anterior, respecto de su consumo por entidad federativa e impuesto correspondiente, así como de los servicios prestados por establecimiento en cada entidad federativa. | C20: Artículo 19 fracción VI LIEPS, regla 5.2.1 RMF 2026 | D20: Anexo 8 | F20: Artículo 91 CFF. La infracción en cualquier forma a las disposiciones fiscales, diversa a las previstas en este Capítulo, se sancionará con multa $490.00 a $4,640.00
B21: Declaración trimestral de los 50 principales clientes y proveedores. | C21: Artículo 19 fracción VIII LIEPS | D21: Anexo 1 | E21: Anexo 1 | F21: No presentar la información a que se refieren el 19, fracciones VIII, IX y XII, de la Ley del Impuesto Especial sobre Producción y Servicios, dentro del plazo previsto en dichos preceptos, o no presentarla conforme lo establecen los mismos. Fundamento: Artículo 81 fracción VIII CFF. | G21: De $96,230.00 a $288,660.00 Fundamento: Artículo 82 fracción VIII CFF.
B22: Los fabricantes, productores o envasadores, deberán llevar un control físico del volumen fabricado, producido o envasado, según corresponda, así como reportar trimestralmente, en los meses de abril, julio, octubre y enero, del año que corresponda, la lectura mensual de los registros de cada uno de los dispositivos que se utilicen para llevar el citado control, en el trimestre inmediato anterior al de su declaración. | C22: Artículo 19 fracción X LIEPS, regla 5.2.1 RMF 2026 | D22: Anexo 9 | F22: No proporcionar la información a que se refiere el artículo 19, fracciones X y XVI de la Ley del Impuesto Especial sobre Producción y Servicios. Fundamento: Artículo 81 fracción XIX CFF. | G22: De $23,940.00 a $47,930.00 Fundamento: Artículo 82 fracción XIX CFF.
B23: Los fabricantes, productores y envasadores, de alcohol, alcohol desnaturalizado, mieles incristalizables y de bebidas alcohólicas, deberán reportar en el mes de enero de cada año, al Servicio de Administración Tributaria, las características de los equipos que utilizarán para la producción, destilación, envasamiento y almacenaje de dichos bienes, así como de los contenedores para el almacenaje de dichos bienes cuando no se trate de equipo. Asimismo, deberán reportar a dicha dependencia la fecha de inicio del proceso de producción, destilación o envasamiento, con quince días de anticipación al mismo, acompañando la información sobre las existencias de producto en ese momento. Igualmente, deberán reportar la fecha en que finalice el proceso, dentro de los quince días siguientes a la conclusión del mismo, acompañando la información sobre el volumen fabricado, producido o envasado. En el caso de que se adquieran o se incorporen nuevos equipos de destilación o envasamiento, se modifiquen los instalados o se enajenen los reportados por el contribuyente, se deberá presentar aviso ante las autoridades fiscales dentro de los 15 días siguientes a que esto ocurra. | C23: Artículo 19 fracción XII LIEPS, regla 5.2.1 RMF 2026 | D23: Anexo 3 Equipos | F23: No presentar la información a que se refieren el 19, fracciones VIII, IX y XII, de la Ley del Impuesto Especial sobre Producción y Servicios, dentro del plazo previsto en dichos preceptos, o no presentarla conforme lo establecen los mismos. Fundamento: Artículo 81 fracción VIII CFF. | G23: De $85,000.00 a $254,980.00. Fundamento: Artículo 82 fracción VIII CFF.
D24: Anexto 4 Proceso de producción, destilación o envasamiento
B27: Producto | C27: Inciso del artículo 2 fracción I LIEPS
B28: Tabacos labrados | C28: C
B29: Obligaciones | C29: Fundamento | D29: Formato MULTI-IEPS | E29: Recomendación
B30: Los productores e importadores de cigarros y otros productos que contengan nicotina, deberán registrar ante las autoridades fiscales, conjuntamente con su declaración de pago correspondiente al primer mes de cada año, la lista de precios de venta por cada uno de los productos que enajenan, clasificados por marca y presentación, señalando los precios al mayorista, detallista y el precio sugerido de venta al público. Asimismo, se deberá informar a las autoridades fiscales cuando exista alguna modificación en los precios, debiendo presentar a las citadas autoridades, dentro de los 5 días siguientes a que esto ocurra, la lista de precios de venta que estará vigente a partir del momento de la modificación. | C30: Artículo 19 fracción IV LIEPS, regla 5.2.1 RMF 2026 | D30: Anexo 2 | F30: Artículo 91 CFF. La infracción en cualquier forma a las disposiciones fiscales, diversa a las previstas en este Capítulo, se sancionará con multa $490.00 a $4,640.00
B31: Proporcionar a las autoridades fiscales durante el mes de marzo de cada año, la información que corresponda de los bienes que produjeron, enajenaron o importaron en el año inmediato anterior, respecto de su consumo por entidad federativa e impuesto correspondiente, así como de los servicios prestados por establecimiento en cada entidad federativa. | C31: Artículo 19 fracción VI LIEPS, regla 5.2.1 RMF 2026 | D31: Anexo 8 | E31: Anexo 8
B32: Declaración trimestral de los 50 principales clientes y proveedores. | C32: Artículo 19 fracción VIII LIEPS | D32: Anexo 1 | E32: Anexo 1 | F32: No presentar la información a que se refieren el 19, fracciones VIII, IX y XII, de la Ley del Impuesto Especial sobre Producción y Servicios, dentro del plazo previsto en dichos preceptos, o no presentarla conforme lo establecen los mismos. Fundamento: Artículo 81 fracción VIII CFF. | G32: De $96,230.00 a $288,660.00 Fundamento: Artículo 82 fracción VIII CFF.
B33: Los productores e importadores de tabacos labrados, deberán informar a la Secretaría de Hacienda y Crédito Público, conjuntamente con su declaración del mes, el precio de enajenación de cada producto y el valor y volumen de los mismos; así como especificar el peso total de tabacos labrados enajenados o, en su caso, la cantidad total de cigarros enajenados. Esta información se deberá proporcionar por cada una de las marcas que produzca o importe el contribuyente. | C33: Artículo 19 fracción IX LIEPS, regla 5.2.1 RMF 2026 | D33: Anexo 2
B34: Los fabricantes, productores o envasadores, deberán llevar un control físico del volumen fabricado, producido o envasado, según corresponda, así como reportar trimestralmente, en los meses de abril, julio, octubre y enero, del año que corresponda, la lectura mensual de los registros de cada uno de los dispositivos que se utilicen para llevar el citado control, en el trimestre inmediato anterior al de su declaración. | C34: Artículo 19 fracción X LIEPS, regla 5.2.1 RMF 2026 | D34: Anexo 9 | F34: No proporcionar la información a que se refiere el artículo 19, fracciones X y XVI de la Ley del Impuesto Especial sobre Producción y Servicios. Fundamento: Artículo 81 fracción XIX CFF. | G34: De $23,940.00 a $47,930.00 Fundamento: Artículo 82 fracción XIX CFF.
B37: Producto | C37: Inciso del artículo 2 fracción I LIEPS
B38: Combustibles automotrices | C38: D
B39: Obligaciones | C39: Fundamento | D39: Formato MULTI-IEPS | E39: Recomendación
B40: Proporcionar a las autoridades fiscales durante el mes de marzo de cada año, la información que corresponda de los bienes que produjeron, enajenaron o importaron en el año inmediato anterior, respecto de su consumo por entidad federativa e impuesto correspondiente, así como de los servicios prestados por establecimiento en cada entidad federativa. | C40: Artículo 19 fracción VI LIEPS, regla 5.2.1 RMF 2026 | D40: Anexo 8 | E40: Anexo 8 | F40: Artículo 91 CFF. La infracción en cualquier forma a las disposiciones fiscales, diversa a las previstas en este Capítulo, se sancionará con multa $490.00 a $4,640.00
B41: Declaración trimestral de los 50 principales clientes y proveedores. | C41: Artículo 19 fracción VIII LIEPS | D41: Anexo 1 | E41: Anexo 1 | F41: No presentar la información a que se refieren el 19, fracciones VIII, IX y XII, de la Ley del Impuesto Especial sobre Producción y Servicios, dentro del plazo previsto en dichos preceptos, o no presentarla conforme lo establecen los mismos. Fundamento: Artículo 81 fracción VIII CFF. | G41: De $96,230.00 a $288,660.00 Fundamento: Artículo 82 fracción VIII CFF.
B42: Los fabricantes, productores o envasadores, deberán llevar un control físico del volumen fabricado, producido o envasado, según corresponda, así como reportar trimestralmente, en los meses de abril, julio, octubre y enero, del año que corresponda, la lectura mensual de los registros de cada uno de los dispositivos que se utilicen para llevar el citado control, en el trimestre inmediato anterior al de su declaración. | C42: Artículo 19 fracción X LIEPS, regla 5.2.1 RMF 2026 | D42: Anexo 9 | F42: No proporcionar la información a que se refiere el artículo 19, fracciones X y XVI de la Ley del Impuesto Especial sobre Producción y Servicios. Fundamento: Artículo 81 fracción XIX CFF. | G42: De $23,940.00 a $47,930.00 Fundamento: Artículo 82 fracción XIX CFF.
B43: Declaración trimestral del precio de enajenación de cada producto, valor y volumen de los mismos, en caso de vinos de mesa es semestral | C43: Artículo 19 fracción XIII LIEPS, regla 5.2.1 RMF 2026 | D43: Anexo 1 | E43: Anexo 1 | F43: No proporcionar la información a que se refiere el artículo 19, fracciones II, tercer párrafo, XIII y XV de la Ley del Impuesto Especial sobre Producción y Servicios. Fundamento: Artículo 81 fracción XVIII CFF. | G43: De $14,380.00 a $23,940.00 Fundamento: Artículo 82 fracción XVIII CFF.
B46: Producto | C46: Inciso del artículo 2 fracción I LIEPS
B47: Bebidas energetizantes, así como concentrados, polvos y jarabes para preparar bebidas energetizantes | C47: F
B48: Obligaciones | C48: Fundamento | D48: Formato MULTI-IEPS | E48: Recomendación
B49: Declaración trimestral de los contribuyentes que se les traslado el IEPS expresamente y por separado. | C49: Artículo 19 fracción II LIEPS, regla 5.2.1 RMF 2026 | D49: Anexo 1 | E49: Anexo 1 | F49: No proporcionar la información a que se refiere el artículo 19, fracciones II, tercer párrafo, XIII y XV de la Ley del Impuesto Especial sobre Producción y Servicios. Fundamento: Artículo 81 fracción XVIII CFF. | G49: De $14,380.00 a $23,940.00 Fundamento: Artículo 82 fracción XVIII CFF.
B50: Proporcionar a las autoridades fiscales durante el mes de marzo de cada año, la información que corresponda de los bienes que produjeron, enajenaron o importaron en el año inmediato anterior, respecto de su consumo por entidad federativa e impuesto correspondiente, así como de los servicios prestados por establecimiento en cada entidad federativa. | C50: Artículo 19 fracción VI LIEPS, regla 5.2.1 RMF 2026 | D50: Anexo 8 | E50: Anexo 8 | F50: Artículo 91 CFF. La infracción en cualquier forma a las disposiciones fiscales, diversa a las previstas en este Capítulo, se sancionará con multa $490.00 a $4,640.00
B51: Declaración trimestral de los 50 principales clientes y proveedores. | C51: Artículo 19 fracción VIII LIEPS | D51: Anexo 1 | E51: Anexo 1 | F51: No presentar la información a que se refieren el 19, fracciones VIII, IX y XII, de la Ley del Impuesto Especial sobre Producción y Servicios, dentro del plazo previsto en dichos preceptos, o no presentarla conforme lo establecen los mismos. Fundamento: Artículo 81 fracción VIII CFF. | G51: De $96,230.00 a $288,660.00 Fundamento: Artículo 82 fracción VIII CFF.
B52: Los fabricantes, productores o envasadores, deberán llevar un control físico del volumen fabricado, producido o envasado, según corresponda, así como reportar trimestralmente, en los meses de abril, julio, octubre y enero, del año que corresponda, la lectura mensual de los registros de cada uno de los dispositivos que se utilicen para llevar el citado control, en el trimestre inmediato anterior al de su declaración. | C52: Artículo 19 fracción X LIEPS, regla 5.2.1 RMF 2026 | D52: Anexo 9 | F52: No proporcionar la información a que se refiere el artículo 19, fracciones X y XVI de la Ley del Impuesto Especial sobre Producción y Servicios. Fundamento: Artículo 81 fracción XIX CFF. | G52: De $23,940.00 a $47,930.00 Fundamento: Artículo 82 fracción XIX CFF.
B53: Declaración trimestral del precio de enajenación de cada producto, valor y volumen de los mismos, en caso de vinos de mesa es semestral | C53: Artículo 19 fracción XIII LIEPS, regla 5.2.1 RMF 2026 | D53: Anexo 1 | E53: Anexo 1 | F53: No proporcionar la información a que se refiere el artículo 19, fracciones II, tercer párrafo, XIII y XV de la Ley del Impuesto Especial sobre Producción y Servicios. Fundamento: Artículo 81 fracción XVIII CFF. | G53: De $12,700.00 a $21,150.00 Fundamento: Artículo 82 fracción XVIII CFF.
B56: Producto | C56: Inciso del artículo 2 fracción I LIEPS
B57: Bebidas saborizadas; concentrados, polvos, jarabes, esencias o extractos de sabores, que al diluirse permitan obtener bebidas saborizadas; y jarabes o concentrados para preparar bebidas saborizadas que se expendan en envases abiertos utilizando aparatos automáticos, eléctricos o mecánicos, siempre que los bienes a que se refiere este inciso contengan cualquier tipo de azúcares añadidos | C57: G
B58: Obligaciones | C58: Fundamento | D58: Formato MULTI-IEPS | E58: Recomendación
B59: Declaración trimestral de los contribuyentes que se les traslado el IEPS expresamente y por separado. | C59: Artículo 19 fracción II LIEPS, regla 5.2.1 RMF 2026 | D59: Anexo 1 | E59: Anexo 1 | F59: No proporcionar la información a que se refiere el artículo 19, fracciones II, tercer párrafo, XIII y XV de la Ley del Impuesto Especial sobre Producción y Servicios. Fundamento: Artículo 81 fracción XVIII CFF. | G59: De $14,380.00 a $23,940.00 Fundamento: Artículo 82 fracción XVIII CFF.
B60: Proporcionar a las autoridades fiscales durante el mes de marzo de cada año, la información que corresponda de los bienes que produjeron, enajenaron o importaron en el año inmediato anterior, respecto de su consumo por entidad federativa e impuesto correspondiente, así como de los servicios prestados por establecimiento en cada entidad federativa. | C60: Artículo 19 fracción VI LIEPS, regla 5.2.1 RMF 2026 | D60: Anexo 8 | E60: Anexo 8 | F60: Artículo 91 CFF. La infracción en cualquier forma a las disposiciones fiscales, diversa a las previstas en este Capítulo, se sancionará con multa $490.00 a $4,640.00
B61: Declaración trimestral de los 50 principales clientes y proveedores. | C61: Artículo 19 fracción VIII LIEPS | D61: Anexo 1 | E61: Anexo 1 | F61: No presentar la información a que se refieren el 19, fracciones VIII, IX y XII, de la Ley del Impuesto Especial sobre Producción y Servicios, dentro del plazo previsto en dichos preceptos, o no presentarla conforme lo establecen los mismos. Fundamento: Artículo 81 fracción VIII CFF. | G61: De $96,230.00 a $288,660.00 Fundamento: Artículo 82 fracción VIII CFF.
B62: Los fabricantes, productores o envasadores, de bebidas saborizadas con azúcares añadidos deberán llevar un control físico del volumen fabricado, producido o envasado, según corresponda, así como reportar trimestralmente, en los meses de abril, julio, octubre y enero, del año que corresponda, la lectura mensual de los registros de cada uno de los dispositivos que se utilicen para llevar el citado control, en el trimestre inmediato anterior al de su declaración. | C62: Artículo 19 fracción X LIEPS, regla 5.2.1 RMF 2026 | D62: Anexo 9 | F62: No proporcionar la información a que se refiere el artículo 19, fracciones X y XVI de la Ley del Impuesto Especial sobre Producción y Servicios. Fundamento: Artículo 81 fracción XIX CFF. | G62: De $23,940.00 a $47,930.00 Fundamento: Artículo 82 fracción XIX CFF.
B65: Producto | C65: Inciso del artículo 2 fracción I LIEPS
B66: Combustibles Fósiles | C66: H
B67: Obligaciones | C67: Fundamento | D67: Formato MULTI-IEPS | E67: Recomendación
B68: Proporcionar a las autoridades fiscales durante el mes de marzo de cada año, la información que corresponda de los bienes que produjeron, enajenaron o importaron en el año inmediato anterior, respecto de su consumo por entidad federativa e impuesto correspondiente, así como de los servicios prestados por establecimiento en cada entidad federativa. | C68: Artículo 19 fracción VI LIEPS, regla 5.2.1 RMF 2026 | D68: Anexo 8 | E68: Anexo 8 | F68: Artículo 91 CFF. La infracción en cualquier forma a las disposiciones fiscales, diversa a las previstas en este Capítulo, se sancionará con multa $490.00 a $4,640.00
B69: Declaración trimestral de los 50 principales clientes y proveedores. | C69: Artículo 19 fracción VIII LIEPS | D69: Anexo 1 | E69: Anexo 1 | F69: No presentar la información a que se refieren el 19, fracciones VIII, IX y XII, de la Ley del Impuesto Especial sobre Producción y Servicios, dentro del plazo previsto en dichos preceptos, o no presentarla conforme lo establecen los mismos. Fundamento: Artículo 81 fracción VIII CFF. | G69: De $96,230.00 a $288,660.00 Fundamento: Artículo 82 fracción VIII CFF.
B70: Los fabricantes, productores o envasadores, deberán llevar un control físico del volumen fabricado, producido o envasado, según corresponda, así como reportar trimestralmente, en los meses de abril, julio, octubre y enero, del año que corresponda, la lectura mensual de los registros de cada uno de los dispositivos que se utilicen para llevar el citado control, en el trimestre inmediato anterior al de su declaración. | C70: Artículo 19 fracción X LIEPS, regla 5.2.1 RMF 2026 | D70: Anexo 9 | F70: No proporcionar la información a que se refiere el artículo 19, fracciones X y XVI de la Ley del Impuesto Especial sobre Producción y Servicios. Fundamento: Artículo 81 fracción XIX CFF. | G70: De $23,940.00 a $47,930.00 Fundamento: Artículo 82 fracción XIX CFF.
B71: Declaración trimestral del precio de enajenación de cada producto, valor y volumen de los mismos, en caso de vinos de mesa es semestral | C71: Artículo 19 fracción XIII LIEPS, regla 5.2.1 RMF 2026 | D71: Anexo 1 | E71: Anexo 1 | F71: No proporcionar la información a que se refiere el artículo 19, fracciones II, tercer párrafo, XIII y XV de la Ley del Impuesto Especial sobre Producción y Servicios. Fundamento: Artículo 81 fracción XVIII CFF. | G71: De $12,700.00 a $21,150.00 Fundamento: Artículo 82 fracción XVIII CFF.
B74: Producto | C74: Inciso del artículo 2 fracción I LIEPS
B75: Plaguicidas | C75: I
B76: Obligaciones | C76: Fundamento | D76: Formato MULTI-IEPS | E76: Recomendación
B77: Proporcionar a las autoridades fiscales durante el mes de marzo de cada año, la información que corresponda de los bienes que produjeron, enajenaron o importaron en el año inmediato anterior, respecto de su consumo por entidad federativa e impuesto correspondiente, así como de los servicios prestados por establecimiento en cada entidad federativa. | C77: Artículo 19 fracción VI LIEPS, regla 5.2.1 RMF 2026 | D77: Anexo 8 | F77: Artículo 91 CFF. La infracción en cualquier forma a las disposiciones fiscales, diversa a las previstas en este Capítulo, se sancionará con multa $490.00 a $4,640.00
B78: Declaración trimestral de los 50 principales clientes y proveedores. | C78: Artículo 19 fracción VIII LIEPS | D78: Anexo 1 | E78: Anexo 1 | F78: No presentar la información a que se refieren el 19, fracciones VIII, IX y XII, de la Ley del Impuesto Especial sobre Producción y Servicios, dentro del plazo previsto en dichos preceptos, o no presentarla conforme lo establecen los mismos. Fundamento: Artículo 81 fracción VIII CFF. | G78: De $96,230.00 a $288,660.00 Fundamento: Artículo 82 fracción VIII CFF.
B79: Los fabricantes, productores o envasadores, deberán llevar un control físico del volumen fabricado, producido o envasado, según corresponda, así como reportar trimestralmente, en los meses de abril, julio, octubre y enero, del año que corresponda, la lectura mensual de los registros de cada uno de los dispositivos que se utilicen para llevar el citado control, en el trimestre inmediato anterior al de su declaración. | C79: Artículo 19 fracción X LIEPS, regla 5.2.1 RMF 2026 | D79: Anexo 9 | F79: No proporcionar la información a que se refiere el artículo 19, fracciones X y XVI de la Ley del Impuesto Especial sobre Producción y Servicios. Fundamento: Artículo 81 fracción XIX CFF. | G79: De $23,940.00 a $47,930.00 Fundamento: Artículo 82 fracción XIX CFF.
B82: Producto | C82: Inciso del artículo 2 fracción I LIEPS
B83: Alimentos no básicos que se listan a continuación, con una densidad calórica de 275 kilocalorías o mayor por cada 100 gramos | C83: J
B84: Obligaciones | C84: Fundamento | D84: Formato MULTI-IEPS | E84: Recomendación
B85: Declaración trimestral de los contribuyentes que se les traslado el IEPS expresamente y por separado. | C85: Artículo 19 fracción II LIEPS, regla 5.2.1 RMF 2026 | D85: Anexo 1 | E85: Anexo 1 | F85: No proporcionar la información a que se refiere el artículo 19, fracciones II, tercer párrafo, XIII y XV de la Ley del Impuesto Especial sobre Producción y Servicios. Fundamento: Artículo 81 fracción XVIII CFF. | G85: De $14,380.00 a $23,940.00 Fundamento: Artículo 82 fracción XVIII CFF.
B86: Proporcionar a las autoridades fiscales durante el mes de marzo de cada año, la información que corresponda de los bienes que produjeron, enajenaron o importaron en el año inmediato anterior, respecto de su consumo por entidad federativa e impuesto correspondiente, así como de los servicios prestados por establecimiento en cada entidad federativa. | C86: Artículo 19 fracción VI LIEPS, regla 5.2.1 RMF 2026 | D86: Anexo 8 | F86: Artículo 91 CFF. La infracción en cualquier forma a las disposiciones fiscales, diversa a las previstas en este Capítulo, se sancionará con multa $490.00 a $4,640.00
B87: Declaración trimestral de los 50 principales clientes y proveedores. | C87: Artículo 19 fracción VIII LIEPS | D87: Anexo 1 | E87: Anexo 1 | F87: No presentar la información a que se refieren el 19, fracciones VIII, IX y XII, de la Ley del Impuesto Especial sobre Producción y Servicios, dentro del plazo previsto en dichos preceptos, o no presentarla conforme lo establecen los mismos. Fundamento: Artículo 81 fracción VIII CFF. | G87: De $96,230.00 a $288,660.00 Fundamento: Artículo 82 fracción VIII CFF.

Sheet FUNDO
B4: Obligaciones de las declaraciones informativas (recomendación de acuerdo al analisis de las fracciones del artículo 19 LIEPS)
B5: Fracción | C5: Obligación | D5: Producto | E5: ¿Cómo se cumple? | F5: ¿Devengado o Flujo? | G5: Información base | H5: Periodicidad
B6: II | C6: Expedir comprobantes fiscales, sin el traslado en forma expresa y por separado del impuesto establecido en esta Ley, salvo tratándose de la enajenación de los bienes a que se refieren los incisos A), D), F), G), I) y J) de la fracción I del artículo 2o. de esta Ley, siempre que el adquirente sea a su vez contribuyente de este impuesto por dichos bienes y así lo solicite. | D6: A) Bebidas con contenido alcohólico y cerveza; D) Combustibles automotrices; F) Bebidas energetizantes, así como concentrados, polvos y jarabes para preparar bebidas energetizantes; G) Bebidas saborizadas; concentrados, polvos, jarabes, esencias o extractos de sabores, que al diluirse permitan obtener bebidas saborizadas; y jarabes o concentrados para preparar bebidas saborizadas que se expendan en envases abiertos utilizando aparatos automáticos, eléctricos o mecánicos, siempre que los bienes a que se refiere este inciso contengan cualquier tipo de azúcares o edulcorantes añadidos; I) Plaguicidas; J) Alimentos no básicos que se listan a continuación, con una densidad calórica de 275 kilocalorías o mayor por cada 100 gramos | E6: Emitiendo CFDI conforme a la LIEPS y reglas del SAT; cuando proceda, desglosar IEPS expresamente | F6: Devengado / operación facturada | G6: CFDI emitidos | H6: Mensual / permanente
B7: II | C7: Los contribuyentes que enajenen los bienes a que se refieren los incisos A), F), G) y J) de la fracción I del artículo 2o. de esta Ley, que trasladen en forma expresa y por separado el impuesto establecido en la misma, deberán proporcionar al Servicio de Administración Tributaria en forma trimestral, en los meses de abril, julio, octubre y enero, del año que corresponda, la relación de las personas a las que en el trimestre anterior al que se declara les hubiere trasladado el impuesto especial sobre producción y servicios en forma expresa y por separado en los términos de esta fracción, así como el monto del impuesto trasladado en dichas operaciones y la información y documentación que mediante reglas de carácter general señale el Servicio de Administración Tributaria. Los contribuyentes que enajenen vinos de mesa, deberán cumplir con la obligación a que se refiere el párrafo anterior en los meses de enero y julio de cada año. | D7: A) Bebidas con contenido alcohólico y cerveza; F) Bebidas energetizantes, así como concentrados, polvos y jarabes para preparar bebidas energetizantes; G) Bebidas saborizadas; concentrados, polvos, jarabes, esencias o extractos de sabores, que al diluirse permitan obtener bebidas saborizadas; y jarabes o concentrados para preparar bebidas saborizadas que se expendan en envases abiertos utilizando aparatos automáticos, eléctricos o mecánicos, siempre que los bienes a que se refiere este inciso contengan cualquier tipo de azúcares o edulcorantes añadidos; J) Alimentos no básicos que se listan a continuación, con una densidad calórica de 275 kilocalorías o mayor por cada 100 gramos | E7: Integrar relación de clientes con IEPS trasladado y montos respectivos | F7: Devengado | G7: CFDI emitidos con IEPS desglosado | H7: Trimestral (abril, julio, octubre y enero), vinos de mesa trimestral
B8: II | C8: Información especial de tabacos y nicotina | D8: C) Tabacos labrados y otros | E8: Identificar peso de tabaco, cigarros o miligramos de nicotina en CFDI | F8: Devengado | G8: CFDI emitidos y controles de inventario | H8: Permanente
B9: VI | C9: VI. Proporcionar a las autoridades fiscales durante el mes de marzo de cada año, la información que corresponda de los bienes que produjeron, enajenaron o importaron en el año inmediato anterior, respecto de su consumo por entidad federativa e impuesto correspondiente, así como de los servicios prestados por establecimiento en cada entidad federativa. Para los efectos de esta fracción, se considera que los bienes se consumen en el lugar en el que se hace la entrega material del producto, de acuerdo con el comprobante fiscal. | E9: Determinar consumo por entidad federativa conforme a la entrega material del producto | F9: Devengado / entrega material | G9: CFDI, logística, entregas, inventarios | H9: Anual (marzo)
B10: VIII | C10: VIII. Los contribuyentes de los bienes a que se refieren los incisos A), B), C), D), F), G), H), I) y J) de la fracción I del artículo 2o. de esta Ley, obligados al pago del impuesto especial sobre producción y servicios a que se refiere la misma, deberán proporcionar al Servicio de Administración Tributaria, trimestralmente, en los meses de abril, julio, octubre y enero, del año que corresponda, la información sobre sus 50 principales clientes y proveedores del trimestre inmediato anterior al de su declaración, respecto de dichos bienes. Tratándose de contribuyentes que enajenen o importen vinos de mesa, deberán cumplir con esta obligación de manera semestral, en los meses de enero y julio de cada año. Los contribuyentes que tengan uno o varios establecimientos ubicados en una entidad federativa diferente al de la matriz, deberán presentar la información a que se refiere el párrafo anterior por las operaciones que correspondan a dichos establecimientos para su consumo final. La información a que se refiere esta fracción y la fracción VI de este artículo, será la base para la determinación de las participaciones a que se refiere esta Ley y los artículos 3o. y 3o.-A de la Ley de Coordinación Fiscal, en materia del impuesto especial sobre producción y servicios | D10: A) Bebidas con contenido alcohólico y cerveza; B) Alcohol, alcohol desnaturalizado y mieles incristalizables; C) Tabacos labrados y otros; D) Combustibles automotrices; F) Bebidas energetizantes, así como concentrados, polvos y jarabes para preparar bebidas energetizantes; G) Bebidas saborizadas; concentrados, polvos, jarabes, esencias o extractos de sabores, que al diluirse permitan obtener bebidas saborizadas; y jarabes o concentrados para preparar bebidas saborizadas que se expendan en envases abiertos utilizando aparatos automáticos, eléctricos o mecánicos, siempre que los bienes a que se refiere este inciso contengan cualquier tipo de azúcares o edulcorantes añadidos; H) Combustibles Fósiles I) Plaguicidas; J) Alimentos no básicos que se listan a continuación, con una densidad calórica de 275 kilocalorías o mayor por cada 100 gramos | E10: Integrar operaciones del trimestre por RFC y monto acumulado | F10: Devengado / operación realizada | G10: CFDI emitidos y recibidos | H10: Trimestral
B11: XIII | C11: XIII. Los contribuyentes de los bienes a que se refieren los incisos A), D), F) y H) de la fracción I del artículo 2o. de esta Ley, obligados al pago del impuesto especial sobre producción y servicios, deberán proporcionar al Servicio de Administración Tributaria, trimestralmente, en los meses de abril, julio, octubre y enero, del año que corresponda, el precio de enajenación de cada producto, valor y volumen de los mismos, efectuado en el trimestre inmediato anterior. Los contribuyentes que enajenen vinos de mesa, deberán cumplir con la obligación a que se refiere esta fracción en los meses de enero y julio de cada año. | D11: A) Bebidas con contenido alcohólico y cerveza; D) Combustibles automotrices; F) Bebidas energetizantes, así como concentrados, polvos y jarabes para preparar bebidas energetizantes; H) Combustibles Fósiles | E11: Reportar volumen comercializado y valor de operaciones realizadas | F11: Devengado / enajenación | G11: CFDI, inventarios y controles volumétricos | H11: Trimestral
B14: Ley de cordinación fiscal
B15: Artículo 3o.- La Secretaría de Hacienda y Crédito Público tiene la obligación de publicar en el Diario Oficial de la Federación el calendario de entrega, porcentaje, fórmulas y variables utilizadas, así como el monto, estimados, que recibirá cada Entidad Federativa del fondo general y del fondo de fomento municipal, para cada ejercicio fiscal a más tardar el 31 de enero del ejercicio de que se trate. Párrafo adicionado DOF 31-12-1999. Reformado DOF 14-07-2003 En los informes trimestrales sobre las finanzas públicas que la Secretaría de Hacienda y Crédito Público entrega a la Cámara de Diputados deberá incluir la evolución de la recaudación federal participable, el importe de las participaciones entregadas de cada fondo a las entidades en ese lapso y, en su caso, el ajuste realizado al término de cada ejercicio fiscal.
B16: Artículo 3-A.- Las entidades federativas adheridas al Sistema Nacional de Coordinación Fiscal, participarán de la recaudación que se obtenga del impuesto especial sobre producción y servicios, por la realización de los actos o actividades gravados con dicho impuesto sobre los bienes que a continuación se mencionan, conforme a las proporciones siguientes: I.- El 20% de la recaudación si se trata de cerveza, bebidas refrescantes, alcohol, bebidas alcohólicas fermentadas y bebidas alcohólicas. Fracción reformada DOF 31-12-1999 II.- El 8% de la recaudación si se trata de tabacos labrados. Esta participación se distribuirá en función del porcentaje que represente la enajenación de cada uno de los bienes a que se refiere este artículo en cada entidad federativa, de la enajenación nacional, y se liquidará conforme a lo establecido en el artículo 7o. de esta Ley. Los municipios recibirán como mínimo el 20% de la participación que le corresponda al estado.

Sheet EJEMPLO
B3: Ventas del mes
B5: Fecha | C5: Producto | D5: RFC del cliente | E5: Cliente | F5: Entidad federativa | G5: Cantidad | H5: Unidad de medida | I5: Presentación | J5: Importe | K5: IEPS | L5: IVA | M5: Total | N5: Método de pago | O5: ¿Exento? | P5: Tasa de IEPS cuando esta desglosado | Q5: ¿IEPS incluido en el precio? | R5: Tasa de IEPS | S5: Importe IEPS incluido
B6: 01/05/20XX | C6: Chocolate | D6: XAXX010101000 | E6: Público en general | F6: 09 | G6: 10 | H6: Caja | I6: 200 gr. | J6: 850 | L6: =SUMIF(J6:K6,">0")*0.16 -> 136 | M6: =SUM(J6:L6) -> 986 | N6: PUE | O6: No | Q6: Sí | R6: 0.08 | S6: =IFERROR(IF(Q6="Sí",ROUND((J6/(1+R6))*R6,2),""),"") -> 62.96
B7: 01/05/20XX | C7: Vino de mesa | D7: MEM890603MJ7 | E7: MEM, S.A. | F7: 09 | G7: 30 | H7: Caja | I7: 750 ml | J7: 8900 | K7: =IF(P7<>"",J7*P7,"") -> 2358.5 | L7: =SUMIF(J7:K7,">0")*0.16 -> 1801.36 | M7: =SUM(J7:L7) -> 13059.86 | N7: PUE | O7: No | P7: 0.265 | Q7: No | S7: =IFERROR(IF(Q7="Sí",ROUND((J7/(1+R7))*R7,2),""),"") -> 
B8: 01/05/20XX | C8: Brandy | D8: XAXX010101000 | E8: Público en general | F8: 09 | G8: 5 | H8: Botella | I8: 1 L. | J8: 1560 | K8: =IF(P8<>"",J8*P8,"") ->  | L8: 249.6 | M8: 1809.6 | N8: PUE | O8: No | Q8: Sí | R8: 0.53 | S8: 540.39
B9: 01/05/20XX | C9: Dulces | D9: XAXX010101000 | E9: Público en general | F9: 09 | G9: 1 | H9: Bolsa | I9: 100 gr | J9: 89 | L9: 14.24 | M9: 103.24 | N9: PUE | O9: No | Q9: Sí | R9: 0.08 | S9: 6.59
B10: 01/05/20XX | C10: Cigarros | D10: XAXX010101000 | E10: Público en general | F10: 09 | G10: 2 | H10: Paquete | J10: 120 | L10: 19.2 | M10: 139.2 | N10: PUE | O10: Sí | Q10: No
B11: 01/05/20XX | C11: Cerveza | D11: XAXX010101000 | E11: Público en general | F11: 09 | G11: 10 | H11: Botellas | J11: 210 | L11: 33.6 | M11: 243.6 | N11: PUE | O11: Sí | Q11: No
B12: 01/05/20XX | C12: Chocolate | D12: JBE870603LO9 | E12: JBE, S.A. DE C.V. | F12: 09 | G12: 30 | H12: Caja | I12: 100 gr | J12: 2361 | K12: 188.88 | L12: 407.9808 | M12: 2957.8608 | N12: PUE | O12: No | P12: 0.08 | Q12: No
B13: 01/05/20XX | C13: Vino de mesa | D13: XAXX010101000 | E13: Público en general | F13: 09 | G13: 8 | H13: Botella | I13: 375 ml | J13: 960 | K13: 254.4 | L13: 194.304 | M13: 1408.704 | N13: PUE | O13: No | P13: 0.265 | Q13: No
B14: 01/05/20XX | C14: Brandy | D14: JBE870603LO9 | E14: JBE, S.A. DE C.V. | F14: 09 | G14: 5 | H14: Caja | I14: 750 ml | J14: 1890 | K14: 1001.7 | L14: 462.672 | M14: 3354.372 | N14: PUE | O14: No | P14: 0.53 | Q14: No
B15: 01/05/20XX | C15: Dulces | D15: MEM890603MJ7 | E15: MEM, S.A. | F15: 09 | G15: 20 | H15: Bolsa | J15: 750 | L15: 120 | M15: 870 | N15: PUE | O15: No | Q15: Sí | R15: 0.08 | S15: 55.56
B16: 01/05/20XX | C16: Refresco cola 600 ml | D16: XAXX010101000 | E16: Público en general | F16: 15 | G16: 24 | H16: Botella | J16: 420 | L16: 67.2 | M16: 487.2 | N16: PUE | O16: Sí | Q16: No
B17: 01/05/20XX | C17: Bebida energética | D17: COSC8001137NA | E17: Comercializadora Sol, S.A. | F17: 19 | G17: 12 | H17: Lata | J17: 540 | L17: 86.4 | M17: 626.4 | N17: PPD | O17: Sí | Q17: No
B18: 01/05/20XX | C18: Cerveza artesanal | D18: AEUJ850902KL1 | E18: AEUJ Distribuciones | F18: 21 | G18: 48 | H18: Botella | J18: 3840 | L18: 614.4 | M18: 4454.4 | N18: PUE | O18: Sí | Q18: No
B19: 01/05/20XX | C19: Whisky | D19: LOPR750412AB2 | E19: LOPR Comercial | F19: 14 | G19: 6 | H19: Botella | I19: 1 L. | J19: 4200 | K19: 2226 | L19: 1028.16 | M19: 7454.16 | N19: PUE | O19: No | P19: 0.53 | Q19: No
B20: 01/05/20XX | C20: Tequila reposado | D20: XAXX010101000 | E20: Público en general | F20: 09 | G20: 3 | H20: Botella | I20: 1 L. | J20: 1950 | L20: 312 | M20: 2262 | N20: PUE | O20: No | Q20: Sí | R20: 0.53 | S20: 675.49
B21: 01/05/20XX | C21: Vodka | D21: MEM890603MJ7 | E21: MEM, S.A. | F21: 08 | G21: 10 | H21: Botella | I21: 1 L. | J21: 5100 | K21: 2703 | L21: 1248.48 | M21: 9051.48 | N21: PPD | O21: No | P21: 0.53 | Q21: No
B22: 01/05/20XX | C22: Ron | D22: JBE870603LO9 | E22: JBE, S.A. DE C.V. | F22: 11 | G22: 15 | H22: Botella | I22: 1 L. | J22: 6300 | K22: 3339 | L22: 1542.24 | M22: 11181.24 | N22: PUE | O22: No | P22: 0.53 | Q22: No
B23: 01/05/20XX | C23: Cigarros premium | D23: XEXX010101000 | E23: Cliente extranjero | F23: 26 | G23: 50 | H23: Cajetilla | J23: 4500 | L23: 720 | M23: 5220 | N23: PUE | O23: Sí | Q23: No
B24: 01/05/20XX | C24: Botanas fritas | D24: XAXX010101000 | E24: Público en general | F24: 09 | G24: 35 | H24: Bolsa | I24: 100 gr | J24: 1050 | L24: 168 | M24: 1218 | N24: PUE | O24: No | Q24: Sí | R24: 0.08 | S24: 77.78
B25: 01/05/20XX | C25: Helado | D25: OPL920611NM2 | E25: Operadora del Pacífico | F25: 02 | G25: 18 | H25: Caja | I25: 500 ml | J25: 2700 | K25: 216 | L25: 466.56 | M25: 3382.56 | N25: PUE | O25: No | P25: 0.08 | Q25: No
B26: 01/05/20XX | C26: Bebida light | D26: XAXX010101000 | E26: Público en general | F26: 09 | G26: 15 | H26: Botella | J26: 315 | L26: 50.4 | M26: 365.4 | N26: PUE | O26: Sí | Q26: No
B27: 01/05/20XX | C27: Chocolate | D27: XAXX010101000 | E27: Público en general | F27: 09 | G27: 12 | H27: Caja | I27: 100 gr | J27: 1080 | L27: 172.8 | M27: 1252.8 | N27: PUE | O27: No | Q27: Sí | R27: 0.08 | S27: 80
B28: 01/05/20XX | C28: Cerveza | D28: MEM890603MJ7 | E28: MEM, S.A. | F28: 09 | G28: 24 | H28: Botella | J28: 980 | L28: 156.8 | M28: 1136.8 | N28: PUE | O28: Sí | Q28: No
B29: 01/05/20XX | C29: Refresco | D29: XAXX010101000 | E29: Público en general | F29: 09 | G29: 40 | H29: Botella | J29: 760 | L29: 121.6 | M29: 881.6 | N29: PUE | O29: Sí | Q29: No
B30: 01/05/20XX | C30: Botanas | D30: JBE870603LO9 | E30: JBE, S.A. DE C.V. | F30: 09 | G30: 50 | H30: Bolsa | I30: 250 gr | J30: 1450 | L30: 232 | M30: 1682 | N30: PUE | O30: No | Q30: Sí | R30: 0.08 | S30: 107.41
B31: 01/05/20XX | C31: Whisky | D31: LOPR750412AB2 | E31: LOPR Comercial | F31: 14 | G31: 4 | H31: Botella | I31: 1 L. | J31: 3200 | L31: 512 | M31: 3712 | N31: PUE | O31: No | Q31: Sí | R31: 0.53 | S31: 1108.5
J32: =SUM(J6:J31) -> 56075 | K32: =SUM(K6:K31) -> 12287.48 | L32: 10937.9968 | M32: 79300.4768 | S32: =SUM(S6:S31) -> 2714.68
B34: Artículo 19 LIEPS.- Los contribuyentes a que se refiere esta Ley tienen, además de las obligaciones señaladas en otros artículos de la misma y en las demás disposiciones fiscales, las siguientes: I. Llevar contabilidad de conformidad con el Código Fiscal de la Federación, su Reglamento y el Reglamento de esta Ley, y efectuar conforme a este último la separación de las operaciones, desglosadas por tasas. Asimismo, se deberán identificar las operaciones en las que se pague el impuesto mediante la aplicación de las cuotas previstas en los artículos 2o., fracción I, incisos C), segundo y tercer párrafos, D), G) y H) y 2o.-A de esta Ley.
C36: Registro contable de las ventas
C38: Clientes | E38: =SUM(M6:M31) -> 79300.4768
C39: IEPS trasaladado pendiente de cobro al 8% | F39: =SUMIF($P$6:$P$31,VALUE(MID(C39,FIND("al ",C39)+3,LEN(C39)-(FIND("al ",C39)+2))),$K$6:$K$31)+SUMIF($R$6:$R$31,VALUE(MID(C39,FIND("al ",C39)+3,LEN(C39)-(FIND("al ",C39)+2))),$S$6:$S$31) -> 795.18
C40: IEPS trasaladado pendiente de cobro al 26.5% | F40: =SUMIF($P$6:$P$31,VALUE(MID(C40,FIND("al ",C40)+3,LEN(C40)-(FIND("al ",C40)+2))),$K$6:$K$31)+SUMIF($R$6:$R$31,VALUE(MID(C40,FIND("al ",C40)+3,LEN(C40)-(FIND("al ",C40)+2))),$S$6:$S$31) -> 2612.9
C41: IEPS trasaladado pendiente de cobro al 53% | F41: 11594.08
C42: IVA trasladado pendie de cobro al 16% | F42: =SUM(L6:L31) -> 10937.9968
C43: Ventas exentas | F43: =SUMIF($O$6:$O$31,"Sí",$J$6:J31) -> 11685
C44: Ventas IEPS 8%, IVA 16% | F44: =SUMIF($P$6:$P$31,8%,$J$6:$J$31)-SUMIF($R$6:$R$31,8%,$S$6:$S$31)+SUMIF($R$6:$R$31,8%,$J$6:$J$31) -> 9939.7
C45: Ventas IEPS 26.5%, IVA 16% | F45: =SUMIF($P$6:$P$31,26.5%,$J$6:$J$31)-SUMIF($R$6:$R$31,26.5%,$S$6:$S$31)+SUMIF($R$6:$R$31,26.5%,$J$6:$J$31) -> 9860
C46: Ventas IEPS 53%, IVA 16% | F46: =SUMIF($P$6:$P$31,53%,$J$6:$J$31)-SUMIF($R$6:$R$31,53%,$S$6:$S$31)+SUMIF($R$6:$R$31,53%,$J$6:$J$31) -> 21875.62
C47: SUMAS IGUALES | E47: =SUM(E38:E46) -> 79300.4768 | F47: =SUM(F39:F46) -> 79300.4768
C49: Registro de cobranza
C50: Bancos | E50: =IFERROR(ROUND(SUMIF($N$6:$N$31,"PUE",$M$6:$M$31),2),0) -> 69622.6
C51: Clientes | F51: =E50 -> 69622.6
C52: IEPS trasaladado pendiente de cobro al 8% | E52: =SUMIFS($K$6:$K$31, $P$6:$P$31, VALUE(MID(C39,FIND("al ",C39)+3, LEN(C39)-(FIND("al ",C39)+2))), $N$6:$N$31, "PUE")+SUMIFS($S$6:$S$31,$R$6:$R$31, VALUE(MID(C39,FIND("al ",C39)+3, LEN(C39)-(FIND("al ",C39)+2))),$N$6:$N$31, "PUE") -> 795.18
C53: IEPS trasaladado pendiente de cobro al 26.5% | E53: =SUMIFS($K$6:$K$31, $P$6:$P$31, VALUE(MID(C40,FIND("al ",C40)+3, LEN(C40)-(FIND("al ",C40)+2))), $N$6:$N$31, "PUE")+SUMIFS($S$6:$S$31,$R$6:$R$31, VALUE(MID(C40,FIND("al ",C40)+3, LEN(C40)-(FIND("al ",C40)+2))),$N$6:$N$31, "PUE") -> 2612.9
C54: IEPS trasaladado pendiente de cobro al 53% | E54: =SUMIFS($K$6:$K$31, $P$6:$P$31, VALUE(MID(C41,FIND("al ",C41)+3, LEN(C41)-(FIND("al ",C41)+2))), $N$6:$N$31, "PUE")+SUMIFS($S$6:$S$31,$R$6:$R$31, VALUE(MID(C41,FIND("al ",C41)+3, LEN(C41)-(FIND("al ",C41)+2))),$N$6:$N$31, "PUE") -> 8891.08
C55: IEPS trasladado pendiente de cobro al 8% | F55: =E52 -> 795.18
C56: IEPS trasladado pendiente de cobro al 26.5% | F56: =E53 -> 2612.9
C57: IEPS trasladado pendiente de cobro al 53% | F57: 8891.08
C58: IVA trasladado pendie de cobro al 16% | E58: =SUMIF($N$6:$N$31,"PUE",L6:L31) -> 9603.1168
C59: IVA trasladado cobrado al 16% | F59: =E58 -> 9603.1168
C60: SUMAS IGUALES | E60: =SUM(E50:E59) -> 91524.8768 | F60: =SUM(F50:F59) -> 91524.8768
B63: Compras
B64: Fecha | C64: Producto | D64: RFC del cliente | E64: Cliente | F64: Entidad federativa | G64: Cantidad | H64: Unidad de medida | I64: Importe | J64: IEPS | K64: IVA | L64: Total | M64: Método de pago | N64: ¿Exento?
B65: 18/05/20xx | C65: Vino de mesa | D65: RER900603LO9 | E65: RER, S.A. DE C.V. | F65: 15 | G65: 100 | H65: Caja | I65: 78000 | J65: =I65*0.265 -> 20670 | K65: =(I65+J65)*16% -> 15787.2 | L65: =SUM(I65:K65) -> 114457.2 | M65: PUE | N65: No
B68: Determinación del IEPS por pagar o a favor
D69: IEPS cobrado
C70: Botanas | D70: =ROUND(IFERROR(SUMIF($C$6:$C$31,C70,$K$6:$K$31),0)+IFERROR(SUMIF($C$6:$C$31,C70,$S$6:$S$31),0),0) -> 107
C71: Botanas fritas | D71: =ROUND(IFERROR(SUMIF($C$6:$C$31,C71,$K$6:$K$31),0)+IFERROR(SUMIF($C$6:$C$31,C71,$S$6:$S$31),0),0) -> 78
C72: Chocolate | D72: 332
C73: Dulces | D73: 62
C74: Helado | D74: 216
C75: Total IEPS por pagar | D75: =SUM(D70:D74) -> 795
D77: IEPS cobrado
C78: Ron | D78: =ROUND(IFERROR(SUMIF($C$6:$C$31,C78,$K$6:$K$31),0)+IFERROR(SUMIF($C$6:$C$31,C78,$S$6:$S$31),0),0) -> 3339
C79: Tequila reposado | D79: 675
C80: Vino de mesa | D80: 2613
C81: Vodka | D81: 2703
C82: Whisky | D82: 3335
C83: Brandy | D83: 1542
C84: Total IEPS cobrado | D84: =SUM(D78:D83) -> 14207
B85: (-)
C86: IEPS acreditable pagado | D86: =J65 -> 20670
B87: (=) | C87: =IF(D84>=D86,"IEPS por pagar","IEPS saldo a favor") -> IEPS saldo a favor | D87: =IFERROR(IF(D84>=D86,D84-D86,D86-D84),"") -> 6463

Sheet ANEXO1
B1: ANEXO 1 - INFORMACIÓN SOBRE IMPORTE Y VOLUMEN DE COMPRAS Y VENTAS
B2: Periodo | D2: Año
B4: Campo1 | C4: Campo2 | D4: Campo3 | E4: Campo4 | F4: Campo5 | G4: Campo6 | H4: Campo7 | I4: Campo8 | J4: Campo9 | K4: Campo10 | L4: Campo11 | M4: Campo12 | N4: Campo13 | O4: Campo14 | P4: Campo15 | Q4: Campo16 | R4: Campo17 | S4: Campo18 | T4: Campo19 | U4: Campo20 | V4: Campo21 | W4: Campo22 | X4: Campo23 | Y4: Campo24 | Z4: Campo25 | AA4: Campo26 | AB4: Campo27 | AC4: Campo28 | AD4: Campo29 | AE4: Campo30 | AF4: Campo31 | AG4: Campo32 | AH4: Campo33 | AI4: Campo34
B5: TIPO DE OPERACIÓN | C5: RFC DEL CLIENTE O PROVEEDOR | D5: APELLIDO PATERNO, APELLIDO MATERNO, NOMBRE (S) | E5: CLAVE DE LA ENTIDAD FEDERATIVA | F5: TIPO DE PRODUCTO | G5: EMPRESA TABACALERA | H5: CLAVE GENERICA DEL PRODUCTO | I5: GRADUACION | J5: Volumen total de enajenación por tipo de producto | K5: EMPAQUE | L5: PRESENTACION | M5: UNIDAD DE MEDIDA | N5: Valor de la operación (antes de impuestos) | O5: Valor de la operación valuada al precio de venta al detallista | P5: IEPS PAGADO / TRASLADADO | Q5: IVA PAGADO / TRASLADADO | R5: IEPS trasladado por la aplicación de la cuota específica de cigarros enajenados | S5: IEPS trasladado por la aplicación de la cuota específica por el peso total en gramos de los puros y otros tabacos labrados, así como, por el peso total en miligramos de otros productos que contengan nicotina enajenados | T5: IEPS trasladado por la aplicación de la cuota específica por el peso total en gramos de los puros y otros tabacos labrados hechos enteramente a mano enajenados | U5: IEPS trasladado por la aplicación de la cuota de bebidas saborizadas | V5: IEPS trasladado por la aplicación de la cuota de bebidas energetizantes | W5: IEPS trasladado por la aplicación de la cuota de bebidas saborizadas con azúcares añadidos | X5: IEPS trasladado por la aplicación de la cuota de bebidas saborizadas con edulcorantes añadidos. | Y5: IEPS trasladado por la aplicación de la cuota de bebidas energetizantes o concentrados, polvos y jarabes para preparar bebidas energetizantes con azúcares añadidos. | Z5: IEPS trasladado por la aplicación de la cuota de bebidas energetizantes o concentrados, polvos y jarabes para preparar bebidas energetizantes con edulcorantes añadidos. | AA5: IEPS pagados en la importación por la aplicación de la cuota específica de cigarros | AB5: IEPS pagado en la importación por la aplicación de la cuota específica de los puros y otros tabacos labrados, así como, de otros productos que contengan nicotina | AC5: IEPS pagados en la importación por la aplicación de la cuota específica de los puros y otros tabacos labrados hechos enteramente a mano | AD5: IEPS pagado en la importación por la aplicación de la cuota de bebidas saborizadas | AE5: IEPS pagado en la importación por la aplicación de la cuota de bebidas energetizantes | AF5: IEPS pagado en la importación por la aplicación de la cuota de bebidas saborizadas con azúcares añadidos | AG5: IEPS pagado en la importación por la aplicación de la cuota de bebidas saborizadas con edulcorantes añadidos | AH5: IEPS pagado en la importación por la aplicación de la cuota de bebidas energetizantes o concentrados, polvos y jarabes para preparar bebidas energetizantes con azúcares añadidos | AI5: IEPS pagado en la importación por la aplicación de la cuota de bebidas energetizantes o concentrados, polvos y jarabes para preparar bebidas energetizantes con edulcorantes añadidos

Sheet ANEXO3
B1: ANEXO 3 - INFORMACIÓN DE LOS EQUIPOS DE PRODUCCIÓN, DESTILACIÓN O ENVASAMIENTO
B2: Periodo | D2: Año
B4: Campo1 | C4: Campo2 | D4: Campo3 | E4: Campo4 | F4: Campo5 | G4: Campo6 | H4: Campo7 | I4: Campo8 | J4: Campo9 | K4: Campo10 | L4: Campo11 | M4: Campo12
B5: Localización de la planta | C5: Tipo de equipos | D5: Fabricante | E5: Marca | F5: Modelo | G5: Número de serie | H5: País de origen | I5: Capacidad (litros 55% / 24 hrs) | J5: Velocidad ( litros / minutos) | K5: Platos | L5: Válvulas | M5: Alambiques

Sheet ANEXO4
B1: ANEXO 4 - REPORTE DE INICIO O TÉRMINO DEL PROCESO DE PRODUCCIÓN O DESTILACIÓN
B2: Periodo | D2: Año
B4: Campo1 | C4: Campo2 | D4: Campo3 | E4: Campo4 | F4: Campo5 | G4: Campo6 | H4: Campo7 | I4: Campo8 | J4: Campo9 | K4: Campo10 | L4: Campo11
B5: Fecha de inicio | C5: Fecha de término | D5: Indique la periodicidad del proceso | E5: Materia prima a utilizar | F5: Cantidad | G5: Unidad de medida | H5: Existencias (litros) | I5: Volumen estimado a destilar (lts 55%) | J5: Volumen fabricado o producido (lts 55%) | K5: Merma | L5: Uso de la producción

Sheet ANEXO5
B1: ANEXO 5 - REPORTE DE INICIO O TÉRMINO DEL PROCESO DE ENVASAMIENTO
B2: Periodo | D2: Año
B4: Campo1 | C4: Campo2 | D4: Campo3 | E4: Campo4 | F4: Campo5 | G4: Campo6 | H4: Campo7 | I4: Campo8 | J4: Campo9 | K4: Campo10 | L4: Campo11 | M4: Campo12
B5: Fecha de inicio | C5: Fecha de término | D5: Indique la periodicidad del proceso | E5: Nombre genérico de la bebida a envasar | F5: Procedencia | G5: Graduación alcohólica | H5: Capacidad de la botella (litros) | I5: Unidades | J5: Destino de la producción | K5: Litros envasados durante el proceso | L5: Mermas | M5: Litros ingresados a la planta al inicio del proceso

Sheet ANEXO8V
B1: Distribución de producción y ventas por entidad federativa
B2: Año | D2: Periodo
B4: Campo1 | C4: Campo2 | D4: Campo3 | E4: Campo4 | F4: Campo5
B5: Identificación del tercero | C5: Producto o servicio que declara | D5: Entidad federativa | E5: Valor total de la producción | F5: Importe de las ventas

Sheet ANEXO9
B1: ANEXO 9 - INFORMACIÓN DE REPORTE TRIMESTRAL DE LOS REGISTROS DE CADA UNO DE LOS DISPOSITIVOS QUE SE UTILICEN PARA LLEVAR EL CONTROL FÍSICO DEL VOLUMEN FABRICADO, PRODUCIDO O ENVASADO
B2: Periodo | D2: Año
B4: Campo1 | C4: Campo2 | D4: Campo3 | E4: Campo4 | F4: Campo5 | G4: Campo6 | H4: Campo7 | I4: Campo8 | J4: Campo9 | K4: Campo10 | L4: Campo11 | M4: Campo12 | N4: Campo13 | O4: Campo14 | P4: Campo15
B5: Indique si se trata de | C5: Indique el rubro de que se trate | D5: Empresa tabacalera | E5: Tipo de producto tabacos | F5: Tipo de producto confis | G5: Unidades | H5: Empaque | I5: Presentación | J5: Unidad de medida | K5: Número de cajas producidas en el periódo | L5: Número de envases por caja | M5: Número de cajas de cigarros, tabacos labrados u otros productos que contengan nicotina producidos en el periodo | N5: Número de cajetillas por caja | O5: Lectura de Integrador de Volumen aparente Inicial | P5: Lectura de Integrador de Volumen aparente Final

Sheet CLAVEG
B2: Bebidas alcohólicas | E2: Combustibles fosiles | H2: Plaguicidas | K2: Alimentos con alta densidad calórica | N2: Combustibles automotrices
B4: Clave | C4: Descripción | E4: Clave | F4: Descripción | H4: Clave | I4: Descripción | K4: Clave | L4: Descripción | N4: Clave | O4: Descripción
B5: 001 | C5: Aguardiente Abocado o Reposado | E5: 002 | F5: Butano | H5: 002 | I5: Categoría 3 | K5: 008 | L5: Alimentos preparadoa a base de cereales | N5: 004 | O5: Combustibles no fósiles
B6: 005 | C6: Aguardiente añejo | E6: 009 | F6: Carbón mineral | H6: 003 | I6: Categoría 4 | K6: 001 | L6: Botanas | N6: 003 | O6: Diésel
B7: 008 | C7: Aguardiente con Sabor | E7: 006 | F7: Combustóleo | H7: 001 | I7: Categorías 1 y 2 | K7: 003 | L7: Chocolate y dempas productos derivados del cacao | N7: 002 | O7: Gasolina mayor o igual a 91 octanos
B8: 002 | C8: Aguardiente Standard (blanco u oro) | E8: 008 | F8: Coque de cargón | H8: 000 | I8: Sin selección | K8: 006 | L8: Cremas de cacahuate y avellanas | N8: 001 | O8: Gasolina menor a 91 octanos
B9: 023 | C9: Amaretto | E9: 007 | F9: Coque petróleo | K9: 005 | L9: Dulces de frutas y horalizas | N9: 000 | O9: Sin selección
B10: 017 | C10: Anís | E10: 005 | F10: Diesel | K10: 007 | L10: Dulces de leche
B11: 012 | C11: Bacanora | E11: 003 | F11: Gasolinas y gasavión | K11: 004 | L11: Flanes y pudines
B12: 045 | C12: Bebidas Refrescantes | E12: 010 | F12: Otros combustibles fósiles | K12: 009 | L12: Helados, nieves y paletas de hielo
B13: 022 | C13: Brandy | E13: 001 | F13: Propano | K13: 002 | L13: Productos de confiter+ia
B14: 028 | C14: Brandy Reserva | E14: 000 | F14: Sin selección | K14: 000 | L14: Sin Selección
B15: 033 | C15: Brandy Solera | E15: 004 | F15: Turbosina y otros kerosenos
B16: 037 | C16: Calvados
B17: 044 | C17: Cerveza
B18: 003 | C18: Charanda
B19: 009 | C19: Cocteles
B20: 039 | C20: Cognac V.S.
B21: 042 | C21: Cognac V.S.O.P
B22: 043 | C22: Cognac X.O.
B23: 013 | C23: Comiteco
B24: 034 | C24: Cremas base Whisky
B25: 018 | C25: Habanero
B26: 014 | C26: Lechuguilla o raicilla
B27: 024 | C27: Licor de Café o Cacao
B28: 004 | C28: Licor de hierbas regionales
B29: 010 | C29: Licores y Cremas hasta 20% Alc. Vol.
B30: 025 | C30: Licores y Cremas más de 20% Al. Vol.
B31: 015 | C31: Mezcal
B32: 047 | C32: Otros
B33: 011 | C33: Parras
B34: 007 | C34: Rompope
B35: 020 | C35: Ron
B36: 027 | C36: Ron Añejo
B37: 029 | C37: Ron con Sabor
B38: 030 | C38: Ron Reserva
B39: 000 | C39: Sin selección
B40: 016 | C40: Sotol
B41: 041 | C41: Tenessee de Luxe
B42: 036 | C42: Tenessee Standard
B43: 038 | C43: Tequila añejo 100% agave
B44: 021 | C44: Tequila joven o blanco
B45: 031 | C45: Tequila joven o blanco 100% agave
B46: 032 | C46: Tequila reposado 100% agave
B47: 026 | C47: Tequila reposado o añejo
B48: 046 | C48: Vinos de mesa
B49: 019 | C49: Vodka
B50: 035 | C50: Whisky o Whiskey, Borbon o Bourbon
B51: 040 | C51: Whisky o Whiskey, Borbon o Bourbon

Sheet PAISO
B2: País de origen
F3: Campo: 6
B4: Valor | C4: Descripción | F4: Descripción: | G4: Empresa tabacalera
B5: XXX | C5: SIN SELECCIÓN | F5: Dato obligatorio
B6: AFG | C6: AFGANISTAN (EMIRATO ISLAMICO DE) | F6: Valores permitidos:
B7: ALB | C7: ALBANIA (REPUBLICA DE) | G7: Valor | I7: Descripción
B8: DEU | C8: ALEMANIA (REPUBLICA FEDERAL DE) | G8: ------- | I8: --------------
B9: AND | C9: ANDORRA (PRINCIPADO DE) | G9: 0 | I9: Sin selección
B10: AGO | C10: ANGOLA (REPUBLICA DE) | G10: 1 | I10: BRITISH AMERICAN TOBACCO MÉXICO, S.A. DE C.V., R.F.C. BAT910607F43
B11: AIA | C11: ANGUILA | G11: 2 | I11: CIGARROS LA TABACALERA MEXICANA, S.A. DE C.V., R.F.C. CTM760420P26
B12: ATG | C12: ANTIGUA Y BARBUDA (COMUNIDAD BRITANICA DE NACIONES) | G12: 4 | I12: CASA AUTREY, S.A. DE C.V., R.F.C. CAU801002699
B13: ANT | C13: ANTILLAS NEERLANDESAS (TERRITORIO HOLANDES DE ULTRAMAR) | G13: 6 | I13: NUEVA MATACAPAN TABACOS, S.A. DE C.V., R.F.C NMT920818519
B14: SAU | C14: ARABIA SAUDITA (REINO DE) | G14: 7 | I14: TABACOS IMPORTADOS DE ALTA CALIDAD S.A. DE C.V., R.F.C. TIA960503CN5
B15: DZA | C15: ARGELIA (REPUBLICA DEMOCRATICA Y POPULAR DE) | G15: 8 | I15: PUROS SANTA CLARA, S.A. DE C.V., R.F.C. PSC9607267W5
B16: ARG | C16: ARGENTINA (REPUBLICA) | G16: 9 | I16: LIEB INTERNACIONAL, S.A. DE C.V., R.F.C. LIN910603L62
B17: ARM | C17: ARMENIA (REPUBLICA DE) | G17: 10 | I17: TABACALERA VERACRUZANA, S.A., R.F.C. TVE690530MJ9
B18: ABW | C18: ARUBA (TERRITORIO HOLANDES DE ULTRAMAR) | G18: 11 | I18: TABACOS SAN ANDRÉS, S.A. DE C.V., R.F.C. TSA860710IB4
B19: AUS | C19: AUSTRALIA (COMUNIDAD DE) | G19: 12 | I19: TABACOS LA VICTORIA, S.A. DE C.V., R.F.C. TVI9609235F5
B20: AUT | C20: AUSTRIA (REPUBLICA DE) | G20: 13 | I20: DISTRIBUCIONES CARIBE MAYA, S.A. DE C.V., R.F.C. DCM970626T95
B21: AZE | C21: AZERBAIJAN (REPUBLICA AZERBAIJANI) | G21: 14 | I21: GRUPO PERMI, S.A. DE C.V., R.F.C. GPE9802189V2
B22: BHS | C22: BAHAMAS (COMUNIDAD DE LAS) | G22: 15 | I22: MARCAS Y SERVICIOS INTERNACIONALES DE MEXICO, S.A. DE C.V., R.F.C. MSI9911022P9
B23: BHR | C23: BAHREIN (ESTADO DE) | G23: 16 | I23: SWEDISH MATCH DE MEXICO, S.A. DE C.V., R.F.C. SMM980203QX8
B24: BGD | C24: BANGLADESH (REPUBLICA POPULAR DE) | G24: 17 | I24: VALLEMONOS TABACOS, S.A. DE C.V., R.F.C. VMT990804ID8
B25: BRB | C25: BARBADOS (COMUNIDAD BRITANICA DE NACIONES) | G25: 18 | I25: TABACOS ALFEREZ, S.A. DE C.V., R.F.C. TAL990928MT4
B26: BEL | C26: BELGICA (REINO DE) | G26: 19 | I26: TABACALERA FLORFINA, S.A. DE C.V., R.F.C. FLO990517960
B27: BLZ | C27: BELICE | G27: 20 | I27: IMPORTADORA Y EXPORTADORA DE PUROS Y TABACOS, S.A. DE C.V., R.F.C. IEP911010UG5
B28: BEN | C28: BENIN (REPUBLICA DE) | G28: 21 | I28: COMPAÑÍA LATINOAMERICANA DE COMERCIO, S.A. DE C.V., R.F.C. LCO950210RB5
B29: BMU | C29: BERMUDAS | G29: 22 | I29: JOSÉ OLIVER MARTÍNEZ HERNÁNDEZ, R.F.C. MAHO741022TI0
B30: BLR | C30: BIELORRUSIA (REPUBLICA DE) | G30: 23 | I30: MARIO ACOSTA AGUILAR, R.F.C. AOAM650517368
B31: BOL | C31: BOLIVIA (REPUBLICA DE) | G31: 24 | I31: MARIA DE LA LUZ DE LA FUENTE CAMARENA , R.F.C. FUCL6504129L2
B32: BIH | C32: BOSNIA Y HERZEGOVINA | G32: 25 | I32: JACKSONVILLE U.S. BRANDS, S.A. DE C.V., R.F.C. JUB020910K11
B33: BWA | C33: BOTSWANA (REPUBLICA DE) | G33: 26 | I33: CIROOMEX, S.A. DE C.V., R.F.C. CIR030513K84
B34: BRA | C34: BRASIL (REPUBLICA FEDERATIVA DE) | G34: 27 | I34: FÁBRICA DE PUROS VALLE DE MÉXICO, S.A. DE C.V., R.F.C. FPV710707NQ9
B35: BRN | C35: BRUNEI (ESTADO DE) (RESIDENCIA DE PAZ) | G35: 28 | I35: FRAGANCIAS ESENCIALES, S.A. DE C.V. , R.F.C. FES970704EY7
B36: BGR | C36: BULGARIA (REPUBLICA DE) | G36: 29 | I36: CORPORACION DE EXPORTACIONES MEXICANAS, S.A. DE C.V., R.F.C. CEM880523SC0
B37: BFA | C37: BURKINA FASO | G37: 30 | I37: COMERCIAL TARGA, S.A. DE C.V., R.F.C. CTA840526JN5
B38: BDI | C38: BURUNDI (REPUBLICA DE) | G38: 31 | I38: DOMADI, S. DE R.L. DE C.V., R.F.C. DOM0303063X1
B39: BTN | C39: BUTAN (REINO DE) | G39: 32 | I39: PHILIP MORRIS MEXICO PRODUCTOS Y SERVICIOS, S. DE R.L. DE C.V., R.F.C. SCP970811NE6
B40: CPV | C40: CABO VERDE (REPUBLICA DE) | G40: 33 | I40: NEW CENTURY TOBACCO MEXICO S.A. DE C.V., R.F.C. NCT0609151V3
B41: CYM | C41: CAIMAN (ISLAS) | G41: 34 | I41: MANUFACTURAS TRADICIONALES DE TABACO S.A. DE C.V., R.F.C. MTT981104MG5
B42: KHM | C42: CAMBOYA (REINO DE) | G42: 35 | I42: GESTIÓN INTERNACIONAL DE MÉXICO S. DE R.L. DE C.V., R.F.C. GIM030523KV7
B43: CMR | C43: CAMERUN (REPUBLICA DEL) | G43: 36 | I43: PUROS Y TABACOS DON CHEPO Y SUCESORES, S.A. DE C.V., R.F.C. PTD971118J42
B44: CAN | C44: CANADA | G44: 37 | I44: PAOLINT, S.A. DE C.V., R.F.C. PAO100714DA3
B45: RKE | C45: CANAL, ISLAS DEL (ISLAS NORMANDAS) | G45: 38 | I45: TABACOS INDUSTRIALES, S.A., RFC TIN660816F70
B46: TCD | C46: CHAD (REPUBLICA DEL) | G46: 39 | I46: CAVA MAGNA, S.A. DE C.V., R.F.C. CMA070226UK8
B47: CHL | C47: CHILE (REPUBLICA DE) | G47: 40 | I47: CECOREX, S.A. DE C.V., R.F.C.CEC101213DI4
B48: CHN | C48: CHINA (REPUBLICA POPULAR) | G48: 41 | I48: BUENA VISTA TOBACCO FACTORY, S.A. DE C.V., R.F.C. BVT100326V16
B49: CYP | C49: CHIPRE (REPUBLICA DE) | G49: 42 | I49: TABACOS MAGNOS, S.A DE C.V., R.F.C. TMA090904PN3
B50: CIA | C50: CIUDAD DEL VATICANO (ESTADO DE LA) | G50: 43 | I50: JAPAN TOBACCO INTERNATIONAL MEXICO, S. DE R.L. DE C.V. R.F.C. JTI0711305X0
B51: CCK | C51: COCOS (KEELING, ISLAS AUSTRALIANAS) | G51: 44 | I51: MONTEPAZ MEXICO, S.A. DE C.V., R.F.C. MME090512TS7
B52: COL | C52: COLOMBIA (REPUBLICA DE) | G52: 45 | I52: BURLEY & VIRGINIA TABACO COMPANY, S.A DE C.V., R.F.C. BAV090610GR5
B53: COM | C53: COMORAS (ISLAS) | G53: 46 | I53: TABACOS DOMINICANOS, S.A DE C.V., R.F.C. TDO061020QJ1
B54: EMU | C54: COMUNIDAD EUROPEA | G54: 47 | I54: LWGN COMERCIO INTERNACIONAL, S.A DE C.V., R.F.C. LCI1206292E2
B55: COG | C55: CONGO (REPUBLICA DEL) | G55: 48 | I55: COMPAÑÍA LATINOAMERICANA, S.A. DE C.V., R.F.C. LAT0212053X1
B56: COK | C56: COOK (ISLAS) | G56: 49 | I56: TABACO CANADIENSE, S.A. DE C.V., R.F.C. TCA061124NR2
B57: KOR | C57: COREA (REPUBLICA DE) (COREA DEL SUR) | G57: 50 | I57: VOGA FIVE, S.A. DE C.V., R.F.C. VFI120227J43
B58: PRK | C58: COREA (REPUBLICA POPULAR DEMOCRATICA DE) (COREA DEL NORTE) | G58: 51 | I58: MEX-KO DE SINALOA, S.A. DE C.V., R.F.C. MSI1302237D6
B59: CIV | C59: COSTA DE MARFIL (REPUBLICA DE LA) | G59: 52 | I59: IMPORTER OF PREMIUM CIGARETTES, S.A. DE C.V. R.F.C. IPC1302134G1
B60: CRI | C60: COSTA RICA (REPUBLICA DE) | G60: 53 | I60: BRAXICO MANUFACTURING, S.A. DE C.V., R.F.C. BMA101208LHA
B61: HRV | C61: CROACIA (REPUBLICA DE) | G61: 54 | I61: IMPORTACIONES OLHEVA, S.A. DE C.V. R.F.C. IOL1111183Y3
B62: CUB | C62: CUBA (REPUBLICA DE) | G62: 55 | I62: JIHE OVERSEAS, S.A. DE C.V., R.F.C. JOV1411077E6
B63: CUR | C63: CURAZAO (TERRITORIO HOLANDES DE ULTRAMAR) | G63: 56 | I63: IMPORTADORA GAADSO, S.A. DE C.V., R.F.C. IGA170616A35
B64: DNK | C64: DINAMARCA (REINO DE) | G64: 57 | I64: US TOBACCO DE MÉXICO S.A. DE C.V., R.F.C. UTM110712GD2
B65: DJI | C65: DJIBOUTI (REPUBLICA DE) | G65: 58 | I65: ROLO INTERNATIONAL TOBACCO, S.A. DE C.V., R.F.C. RIT170810ES7
B66: DMA | C66: DOMINICA (COMUNIDAD DE) | G66: 59 | I66: CIMOGA INTEGRAL, S.A. DE C.V., R.F.C. CIN180428JT0
B67: ECU | C67: ECUADOR (REPUBLICA DEL) | G67: 60 | I67: AMARIS TOBACCO, S.A. DE C.V., R.F.C. ATO970124EA7
B68: EGY | C68: EGIPTO (REPUBLICA ARABE DE) | G68: 61 | I68: GRUPO GEOESTRATÉGICO KORMEX, S.A DE C.V., R.F.C. GGK190626E52
B69: SLV | C69: EL SALVADOR (REPUBLICA DE) | G69: 62 | I69: IMPORTADORA CUESTA REY, S.A DE C.V., R.F.C. ICR130508B30
B70: ARE | C70: EMIRATOS ARABES UNIDOS | G70: 63 | I70: CANTOBACCO, S.A. DE C.V., R.F.C. CAN1403135W0
B71: ERI | C71: ERITREA (ESTADO DE) | G71: 64 | I71: VITOLAS DEL CARIBE, S.A. DE C.V., R.F.C. VCA120419GJ3
B72: SVN | C72: ESLOVENIA (REPUBLICA DE) | G72: 65 | I72: PROYECTO MVM, S.A. DE C.V., R.F.C. PMV130218LK0
B73: ESP | C73: ESPAÑA (REINO DE) | G73: 66 | I73: SIJARA INTERNATIONAL MANUFACTURING, S.A. DE C.V., R.F.C. SIM170626T10
B74: DSM | C74: ESTADO FEDERADO DE MICRONESIA | G74: 67 | I74: CODEX IMPORTER TOBACCO, S.A. DE C.V., R.F.C. CIT160219U48
B75: USA | C75: ESTADOS UNIDOS DE AMERICA | G75: 68 | I75: SIKAR GLOBAL DISTRIBUTION EXPERTS, S. DE R.L. DE C.V. R.F.C. SGD2001295NA
B76: EST | C76: ESTONIA (REPUBLICA DE) | G76: 69 | I76: DISTRIBUIDORA Y TABACALERA GARLESS, S. DE R.L. DE C.V. R.F.C. DTG2004068R3
B77: ETH | C77: ETIOPIA (REPUBLICA DEMOCRATICA FEDERAL) | G77: 70 | I77: TABAPPAR, S.P.R. DE R.L. R.F.C. TAB051027637
B78: FJI | C78: FIDJI (REPUBLICA DE) | G78: 71 | I78: HIKURI IMPORTS, S.A. DE C.V. R.F.C. HIM120619CF5
B79: PHL | C79: FILIPINAS (REPUBLICA DE LAS) | G79: 72 | I79: VITOLAS DEL MUNDO, S.A. DE C.V., R.F.C. VMU191004IX7
B80: FIN | C80: FINLANDIA (REPUBLICA DE) | G80: 73 | I80: DISTRIBUIDORA Y COMERCIALIZADORA PLATINIUM, S.A. DE C.V. R.F.C. DCP2008247D9
B81: FRA | C81: FRANCIA (REPUBLICA FRANCESA) | G81: 74 | I81: TABACO ORGANICO MEXICANO, S.A.P.I. DE C.V. R.F.C. TOM200318FS6
B82: GZA | C82: FRANJA DE GAZA | G82: 75 | I82: RC BESTECH DE MÉXICO, S. de R.L. de C.V. R.F.C. RBM140502KXA
B83: GAB | C83: GABONESA (REPUBLICA) | G83: 76 | I83: TRANSFORMADORA EL SARDINERO, S.A. de C.V. R.F.C. PPR140828RC8
B84: GMB | C84: GAMBIA (REPUBLICA DE LA) | G84: 77 | I84: YAQUI TRIBE COMPANY, S.A.S. DE C.V. R.F.C. YTR220624IRA
B85: GEO | C85: GEORGIA (REPUBLICA DE) | G85: 78 | I85: CIGATAUSAMEX S.A. DE C.V. R.F.C. CIG210527NL0
B86: GHA | C86: GHANA (REPUBLICA DE) | F86: SÓLO EN CASO DE TABACOS LABRADOS Y OTROS PRODUCTOS QUE CONTENGAN NICOTINA (ESTE ÚLTIMO VIGENTE A PARTIR DE 2026)
B87: GIB | C87: GIBRALTAR (R.U.)
B88: GRD | C88: GRANADA
B89: GRC | C89: GRECIA (REPUBLICA HELENICA)
B90: GRL | C90: GROENLANDIA (DINAMARCA)
B91: GLP | C91: GUADALUPE (DEPARTAMENTO DE)
B92: GUM | C92: GUAM (E.U.A.)
B93: GTM | C93: GUATEMALA (REPUBLICA DE)
B94: GIN | C94: GUINEA (REPUBLICA DE)
B95: GNQ | C95: GUINEA ECUATORIAL (REPUBLICA DE)
B96: GNB | C96: GUINEA-BISSAU (REPUBLICA DE)
B97: GUY | C97: GUYANA (REPUBLICA COOPERATIVA DE)
B98: GUF | C98: GUYANA FRANCESA
B99: HTI | C99: HAITI (REPUBLICA DE)
B100: HND | C100: HONDURAS (REPUBLICA DE)
B101: HKG | C101: HONG KONG (REGION ADMINISTRATIVA ESPECIAL DE LA REPUBLICA)
B102: HUN | C102: HUNGRIA (REPUBLICA DE)
B103: IND | C103: INDIA (REPUBLICA DE)
B104: IDN | C104: INDONESIA (REPUBLICA DE)
B105: IRQ | C105: IRAK (REPUBLICA DE)
B106: IRN | C106: IRAN (REPUBLICA ISLAMICA DEL)
B107: IRL | C107: IRLANDA (REPUBLICA DE)
B108: ISL | C108: ISLANDIA (REPUBLICA DE)
B109: LHM | C109: ISLAS HEARD Y MCDONALD
B110: FLK | C110: ISLAS MALVINAS (R.U.)
B111: MNP | C111: ISLAS MARIANAS SEPTENTRIONALES
B112: MHL | C112: ISLAS MARSHALL
B113: SLB | C113: ISLAS SALOMON (COMUNIDAD BRITANICA DE NACIONES)
B114: SJM | C114: ISLAS SVALBARD Y JAN MAYEN (NORUEGA)
B115: TKL | C115: ISLAS TOKELAU
B116: WLF | C116: ISLAS WALLIS Y FUTUNA
B117: ISR | C117: ISRAEL (ESTADO DE)
B118: ITA | C118: ITALIA (REPUBLICA ITALIANA)
B119: JAM | C119: JAMAICA
B120: JPN | C120: JAPON
B121: JOR | C121: JORDANIA (REINO HACHEMITA DE)
B122: KAZ | C122: KAZAKHSTAN (REPUBLICA DE)
B123: KEN | C123: KENYA (REPUBLICA DE)
B124: KIR | C124: KIRIBATI (REPUBLICA DE)
B125: KWT | C125: KUWAIT (ESTADO DE)
B126: KGZ | C126: KYRGYZSTAN (REPUBLICA KIRGYZIA)
B127: LSO | C127: LESOTHO (REINO DE)
B128: LVA | C128: LETONIA (REPUBLICA DE)
B129: LBN | C129: LIBANO (REPUBLICA DE)
B130: LBR | C130: LIBERIA (REPUBLICA DE)
B131: LBY | C131: LIBIA (JAMAHIRIYA LIBIA ARABE POPULAR SOCIALISTA)
B132: LIE | C132: LIECHTENSTEIN (PRINCIPADO DE)
B133: LTU | C133: LITUANIA (REPUBLICA DE)
B134: LUX | C134: LUXEMBURGO (GRAN DUCADO DE)
B135: MAC | C135: MACAO
B136: MKD | C136: MACEDONIA (ANTIGUA REPUBLICA YUGOSLAVA DE)
B137: MDG | C137: MADAGASCAR (REPUBLICA DE)
B138: MYS | C138: MALASIA
B139: MWI | C139: MALAWI (REPUBLICA DE)
B140: MDV | C140: MALDIVAS (REPUBLICA DE)
B141: MLI | C141: MALI (REPUBLICA DE)
B142: MLT | C142: MALTA (REPUBLICA DE)
B143: MAR | C143: MARRUECOS (REINO DE)
B144: MTQ | C144: MARTINICA (DEPARTAMENTO DE) (FRANCIA)
B145: MUS | C145: MAURICIO (REPUBLICA DE)
B146: MRT | C146: MAURITANIA (REPUBLICA ISLAMICA DE)
B147: MEX | C147: MEXICO (ESTADOS UNIDOS MEXICANOS)
B148: MDA | C148: MOLDAVIA (REPUBLICA DE)
B149: MCO | C149: MONACO (PRINCIPADO DE)
B150: MNG | C150: MONGOLIA
B151: MSR | C151: MONSERRAT (ISLA)
B152: MOZ | C152: MOZAMBIQUE (REPUBLICA DE)
B153: MMR | C153: MYANMAR (UNION DE)
B154: NAM | C154: NAMIBIA (REPUBLICA DE)
B155: NRU | C155: NAURU
B156: CXI | C156: NAVIDAD (CHRISTMAS) (ISLAS)
B157: NPL | C157: NEPAL (REINO DE)
B158: NIC | C158: NICARAGUA (REPUBLICA DE)
B159: NER | C159: NIGER (REPUBLICA DE)
B160: NGA | C160: NIGERIA (REPUBLICA FEDERAL DE)
B161: NIU | C161: NIVE (ISLA)
B162: NFK | C162: NORFOLK (ISLA)
B163: NOR | C163: NORUEGA (REINO DE)
B164: NCL | C164: NUEVA CALEDONIA (TERRITORIO FRANCES DE ULTRAMAR)
B165: NZL | C165: NUEVA ZELANDIA
B166: OMN | C166: OMAN (SULTANATO DE)
B167: PIK | C167: PACIFICO, ISLAS DEL (ADMON. E.U.A.)
B168: ZYA | C168: PAISES BAJOS (REINO DE LOS) (HOLANDA)
B169: KCD | C169: PAISES NO DECLARADOS
B170: PAK | C170: PAKISTAN (REPUBLICA ISLAMICA DE)
B171: PLW | C171: PALAU (REPUBLICA DE)
B172: PAN | C172: PANAMA (REPUBLICA DE)
B173: PNG | C173: PAPUA NUEVA GUINEA (ESTADO INDEPENDIENTE DE)
B174: PRY | C174: PARAGUAY (REPUBLICA DEL)
B175: PER | C175: PERU (REPUBLICA DEL)
B176: PCN | C176: PITCAIRNS (ISLAS DEPENDENCIA BRITANICA)
B177: PYF | C177: POLINESIA FRANCESA
B178: POL | C178: POLONIA (REPUBLICA DE)
B179: PRT | C179: PORTUGAL (REPUBLICA PORTUGUESA)
B180: PRI | C180: PUERTO RICO (ESTADO LIBRE ASOCIADO DE LA COMUNIDAD DE)
B181: QAT | C181: QATAR (ESTADO DE)
B182: GBR | C182: REINO UNIDO DE LA GRAN BRETAÑA E IRLANDA DEL NORTE
B183: CAF | C183: REPUBLICA CENTROAFRICANA
B184: CZE | C184: REPUBLICA CHECA
B185: LAO | C185: REPUBLICA DEMOCRATICA POPULAR LAOS
B186: DOM | C186: REPUBLICA DOMINICANA
B187: SVK | C187: REPUBLICA ESLOVACA
B188: COD | C188: REPUBLICA POPULAR DEL CONGO
B189: RWA | C189: REPUBLICA RUANDESA
B190: REU | C190: REUNION (DEPARTAMENTO DE LA) (FRANCIA)
B191: ROM | C191: RUMANIA
B192: RUS | C192: RUSIA (FEDERACION RUSA)
B193: ESH | C193: SAHARA OCCIDENTAL (REPUBLICA ARABE SAHARAVI DEMOCRATICA)
B194: WSM | C194: SAMOA (ESTADO INDEPENDIENTE DE)
B195: KNA | C195: SAN CRISTOBAL Y NIEVES (FEDERACION DE) (SAN KITTS-NEVIS)
B196: SMR | C196: SAN MARINO (SERENISIMA REPUBLICA DE)
B197: SPM | C197: SAN PEDRO Y MIQUELON
B198: VCT | C198: SAN VICENTE Y LAS GRANADINAS
B199: SHN | C199: SANTA ELENA
B200: LCA | C200: SANTA LUCIA
B201: STP | C201: SANTO TOME Y PRINCIPE (REPUBLICA DEMOCRATICA DE)
... 43 more rows

Sheet CODIGO
B3: Inicial | C3: Final | D3: Estado
B4: 20000 | C4: 20997 | D4: 01 Aguascalientes
B5: 21000 | C5: 22997 | D5: 02 Baja California
B6: 23000 | C6: 23997 | D6: 03 Baja California Sur
B7: 24000 | C7: 24940 | D7: 04 Campeche
B8: 25000 | C8: 27997 | D8: 05 Coahuila
B9: 28000 | C9: 28989 | D9: 06 Colima
B10: 29000 | C10: 30997 | D10: 07 Chiapas
B11: 31000 | C11: 33997 | D11: 08 Chihuahua
B12: 01000 | C12: 16900 | D12: 09 Distrito Federal
B13: 34000 | C13: 35987 | D13: 10 Durango
B14: 36000 | C14: 38997 | D14: 11 Guanajuato
B15: 39000 | C15: 41998 | D15: 12 Guerrero
B16: 42000 | C16: 43998 | D16: 13 Hidalgo
B17: 44100 | C17: 49996 | D17: 14 Jalisco
B18: 50000 | C18: 57950 | D18: 15 Estado de México
B19: 58000 | C19: 61998 | D19: 16 Michoacán
B20: 62000 | C20: 62996 | D20: 17 Morelos
B21: 63000 | C21: 63996 | D21: 18 Nayarit
B22: 64000 | C22: 67996 | D22: 19 Nuevo León
B23: 68000 | C23: 71998 | D23: 20 Oaxaca
B24: 72000 | C24: 75997 | D24: 21 Puebla
B25: 76000 | C25: 76998 | D25: 22 Querétaro
B26: 77000 | C26: 77997 | D26: 23 Quintana Roo
B27: 78000 | C27: 79998 | D27: 24 San Luis Potosí
B28: 80000 | C28: 82996 | D28: 25 Sinaloa
B29: 83000 | C29: 85994 | D29: 26 Sonora
B30: 86000 | C30: 86998 | D30: 27 Tabasco
B31: 87000 | C31: 89970 | D31: 28 Tamaulipas
B32: 90000 | C32: 90990 | D32: 29 Tlaxcala
B33: 91000 | C33: 96998 | D33: 30 Veracruz
B34: 97000 | C34: 97990 | D34: 31 Yucatán
B35: 98000 | C35: 99998 | D35: 32 Zacatecas
D36: 33 Extranjeros

Sheet GENERALES (hidden)
B4: Trimestre | C4: Año
B5: Enero-Marzo | C5: 2022 | E5: Enero
B6: Abirl-Junio | C6: 2023 | E6: Febrero
B7: Julio-Septiembre | C7: 2024 | E7: Marzo
B8: Octubre-Diciembre | C8: 2025 | E8: Abril
B9: Enero-Junio | C9: 2026 | E9: Mayo
B10: Julio-Diciembre | E10: Junio
E11: Julio
E12: Agosto
E13: Septiembre
E14: Octubre
E15: Noviembre
E16: Diciembre
B21: VNUMERO = Range("BB" & A) & "|" & Range("BC" & A) & "|" & Range("BD" & A) & "|" & Range("BE" & A) & "|" & Range("BF" & A) & "|" & Range("BG" & A) & "|" & _
B22: Range("BH" & A) & "|" & Range("BI" & A) & "|" & Range("BJ" & A) & "|" & Range("BK" & A) & "|" & Range("BL" & A) & "|" & Range("BM" & A) & Range("BN" & A) & Range("BO" & A) & Range("BP" & A) _
B23: & Range("BQ" & A) & Range("BR" & A)& Range("BS" & A)& Range("BT" & A)& Range("BU" & A)& Range("BV" & A)& Range("BW" & A)& Range("BX" & A)& Range("BY" & A)& Range("BZ" & A) _
